NUMERO_MANDATO;RIGA_MANDATO;QUIET;IMPORTO_RIGA;IMPORTO_MANDATO;BENEFICIARIO;CIG;TITOLO_PAGAMENTO;DATA_MANDATO;CAPITOLO;ARTICOLO;NUMERO_IMPEGNO;TITOLO;DESCR_TITOLO;LIVELLO_II;DESCR_LIVELLO_II;LIVELLO_III;DESCR_LIVELLO_III;LIVELLO_IV;DESCR_LIVELLO_IV;LIVELLO_V;DESCR_LIVELLO_V;DATA_PAG_EFF;
1;1;0;188,81;188,81;AGENZIA DELLE ENTRATE RISCOSSIONE; ;IMPEGNO DI SPESA A FAVORE DELLAGENZIA DELLE ENTRATE -RISCOSSIONI RIMBORSO VERSAMENTI IVA ULTIMO TRIMESTRE 2012;10/01/2023;1413;2;500;1;Spese correnti;10;Altre spese correnti;3;Versamenti IVA a debito;1;Versamenti IVA a debito per le gestioni commerciali;1;Versamenti IVA a debito per le gestioni commerciali;10/01/2023;
2;1;0;242,78;242,78;S.H.S. DI PIRAS FRANCESCO;ZC938BD995;SALDO Fatt.n. 136  del 14/12/2022 Rif. Vs. DETERMINAZIONE NR. 270 DEL 02-12-202;10/01/2023;1206;10;483;1;Spese correnti;3;Acquisto di beni e servizi;1;Acquisto di beni;2;Altri beni di consumo;6;Materiale informatico;10/01/2023;
3;1;0;1.545,78;1.545,78;AL.MA DI ORTU MAURIZIO;Z90332DCB7;ACCONTO Fatt.n. 227  del 22/12/2022;10/01/2023;4210;3;311;1;Spese correnti;3;Acquisto di beni e servizi;2;Acquisto di servizi;15;Contratti di servizio pubblico;6;Contratti di servizio per le mense scolastiche;10/01/2023;
4;1;0;524,5;524,5;AL.MA DI ORTU MAURIZIO;Z90332DCB7;ACCONTO Fatt.n. 227  del 22/12/2022;10/01/2023;4210;4;310;1;Spese correnti;3;Acquisto di beni e servizi;2;Acquisto di servizi;15;Contratti di servizio pubblico;6;Contratti di servizio per le mense scolastiche;10/01/2023;
5;1;0;146,68;146,68;AL.MA DI ORTU MAURIZIO;Z90332DCB7;ACCONTO Fatt.n. 227  del 22/12/2022;10/01/2023;10418;10;315;1;Spese correnti;3;Acquisto di beni e servizi;2;Acquisto di servizi;99;Altri servizi;999;Altri servizi diversi n.a.c.;10/01/2023;
6;1;0;97,5;97,5;AL.MA DI ORTU MAURIZIO;Z90332DCB7;SALDO Fatt.n. 227  del 22/12/2022;10/01/2023;10418;11;414;1;Spese correnti;3;Acquisto di beni e servizi;2;Acquisto di servizi;99;Altri servizi;999;Altri servizi diversi n.a.c.;10/01/2023;
7;1;0;7.320,00;7.320,00;COOPERATIVA SOCIALE 3D;Z9B384EB48;SALDO Fatt.n. 99  del 29/12/2022;10/01/2023;21412;22;425;2;Spese in conto capitale;2;Investimenti fissi lordi e acquisto di terreni;1;Beni materiali;9;Beni immobili;999;Beni immobili n.a.c.;10/01/2023;
8;1;0;600;600;RAP PROFESSIONAL SRL;Z4F39224F2;SALDO Fatt.n. 882/2022  del 31/12/2022;10/01/2023;3208;1;498;1;Spese correnti;3;Acquisto di beni e servizi;1;Acquisto di beni;2;Altri beni di consumo;4;Vestiario;10/01/2023;
9;1;0;154,91;154,91;ENEL ENERGIA S.P.A.; ;SALDO Fatt.n. 004288038915  del 12/12/2022;10/01/2023;4210;2;8;1;Spese correnti;3;Acquisto di beni e servizi;2;Acquisto di servizi;5;Utenze e canoni;4;Energia elettrica;10/01/2023;
10;1;0;154,15;154,15;ENEL ENERGIA S.P.A.; ;SALDO Fatt.n. 004288038917  del 12/12/2022;10/01/2023;6211;8;14;1;Spese correnti;3;Acquisto di beni e servizi;2;Acquisto di servizi;5;Utenze e canoni;4;Energia elettrica;10/01/2023;
11;1;0;2.029,59;2.029,59;ENEL ENERGIA S.P.A.; ;SALDO Fatt.n. 004288038916  del 12/12/2022;10/01/2023;8214;1;11;1;Spese correnti;3;Acquisto di beni e servizi;2;Acquisto di servizi;5;Utenze e canoni;4;Energia elettrica;10/01/2023;
12;1;0;276,48;276,48;ENEL ENERGIA S.P.A.; ;SALDO Fatt.n. 004283668399  del 09/12/2022;10/01/2023;8214;1;11;1;Spese correnti;3;Acquisto di beni e servizi;2;Acquisto di servizi;5;Utenze e canoni;4;Energia elettrica;10/01/2023;
13;1;0;81,97;81,97;ENEL ENERGIA S.P.A.; ;SALDO Fatt.n. 004287027436  del 11/12/2022;10/01/2023;10519;1;13;1;Spese correnti;3;Acquisto di beni e servizi;2;Acquisto di servizi;5;Utenze e canoni;4;Energia elettrica;10/01/2023;
14;1;0;88,82;88,82;ENEL ENERGIA S.P.A.; ;SALDO Fatt.n. 004288038914  del 12/12/2022;10/01/2023;11722;1;5;1;Spese correnti;3;Acquisto di beni e servizi;2;Acquisto di servizi;5;Utenze e canoni;4;Energia elettrica;10/01/2023;
15;1;0;75,56;75,56;A2A ENERGIA; ;ACCONTO Fatt.n. 822000343014  del 28/12/2022 FORNITURA ENERGIA ELETTRICA periodo: 01.11.2022-30.11.2022 POD IT001E99410996 Contatore 000000000000310862 kWh 573;11/01/2023;6211;6;3;1;Spese correnti;3;Acquisto di beni e servizi;2;Acquisto di servizi;5;Utenze e canoni;4;Energia elettrica;11/01/2023;
16;1;0;47,93;47,93;A2A ENERGIA; ;SALDO Fatt.n. 822000339784  del 27/12/2022 FORNITURA ENERGIA ELETTRICA periodo: 01.11.2022-30.11.2022 POD IT001E98289340 Contatore 000000000000054064 kWh 42;11/01/2023;6211;6;3;1;Spese correnti;3;Acquisto di beni e servizi;2;Acquisto di servizi;5;Utenze e canoni;4;Energia elettrica;11/01/2023;
17;1;0;25,64;25,64;A2A ENERGIA; ;SALDO Fatt.n. 822000339202  del 27/12/2022 FORNITURA ENERGIA ELETTRICA periodo: 01.11.2022-30.11.2022 POD IT001E99898431 Contatore 000000000000966489 kWh 41;11/01/2023;6211;6;3;1;Spese correnti;3;Acquisto di beni e servizi;2;Acquisto di servizi;5;Utenze e canoni;4;Energia elettrica;11/01/2023;
18;1;0;131,67;131,67;A2A ENERGIA; ;SALDO Fatt.n. 822000343014  del 28/12/2022 FORNITURA ENERGIA ELETTRICA periodo: 01.11.2022-30.11.2022 POD IT001E99410996 Contatore 000000000000310862 kWh 573;11/01/2023;8214;1;4;1;Spese correnti;3;Acquisto di beni e servizi;2;Acquisto di servizi;5;Utenze e canoni;4;Energia elettrica;11/01/2023;
19;1;0;4.090,42;4.090,42;SVILUPPO SERVIZI ITALIA SOC.COOP. ONLUS;852061491A;SALDO Fatt.n. 92FPA  del 30/12/2022;11/01/2023;10418;23;453;1;Spese correnti;3;Acquisto di beni e servizi;2;Acquisto di servizi;99;Altri servizi;999;Altri servizi diversi n.a.c.;11/01/2023;
20;1;0;134,32;134,32;MINISTERO DELL'INTERNO-AFFARI INTERNI E TERRITORIALI; ;capox capitolo 3746 Decreto Ministeriale 25.05.2016 - incassi relativi ai diritti nuove CIE. Liquidazione Somme in favore del Ministero MESE DICEMBRE 2022;11/01/2023;1229;2;110;1;Spese correnti;4;Trasferimenti correnti;1;Trasferimenti correnti a Amministrazioni Pubbliche;1;Trasferimenti correnti a Amministrazioni Centrali;1;Trasferimenti correnti a Ministeri;11/01/2023;
21;1;0;678,13;678,13;STUDIO LEGALE AVV. FRANCESCO ONNIS;ZA1378D0A8;SALDO Fatt.n. 53  del 20/12/2022 Rappresentanza legale del Comune nella procedura di negoziazione assistita, fasi di attivazione e negoziazione.;16/01/2023;1207;41;296;1;Spese correnti;3;Acquisto di beni e servizi;2;Acquisto di servizi;11;Prestazioni professionali e specialistiche;6;Patrocinio legale;16/01/2023;
22;1;0;116,73;116,73;ABBANOA S.P.A.; ;SALDO Fatt.n. 0150020220003090000  del 25/11/2022 B/Bollettazione;16/01/2023;1207;18;21;1;Spese correnti;3;Acquisto di beni e servizi;2;Acquisto di servizi;5;Utenze e canoni;5;Acqua;16/01/2023;
23;1;0;134,54;134,54;ABBANOA S.P.A.; ;ACCONTO Fatt.n. 0150020220003428300  del 23/12/2022 B/Bollettazione;16/01/2023;1207;18;21;1;Spese correnti;3;Acquisto di beni e servizi;2;Acquisto di servizi;5;Utenze e canoni;5;Acqua;16/01/2023;
24;1;0;90,29;90,29;ABBANOA S.P.A.; ;SALDO Fatt.n. 0150020220002791400  del 21/10/2022 B/Bollettazione;16/01/2023;1207;18;21;1;Spese correnti;3;Acquisto di beni e servizi;2;Acquisto di servizi;5;Utenze e canoni;5;Acqua;16/01/2023;
25;1;0;440,46;440,46;ABBANOA S.P.A.; ;SALDO Fatt.n. 0150020220003428300  del 23/12/2022 B/Bollettazione;16/01/2023;4210;12;23;1;Spese correnti;3;Acquisto di beni e servizi;2;Acquisto di servizi;5;Utenze e canoni;5;Acqua;16/01/2023;
26;1;0;1.818,44;1.818,44;AUTORITA' D'AMBITO TERRITORIALE OTTIMALE DELLA SARDEGNA; ;Liquidazione competenze Autorita dAmbito Territoriale della Sardegna per lanno 2022;16/01/2023;9420;5;59;1;Spese correnti;4;Trasferimenti correnti;1;Trasferimenti correnti a Amministrazioni Pubbliche;2;Trasferimenti correnti a Amministrazioni Locali;999;Trasferimenti correnti a altre Amministrazioni Locali n.a.c.;16/01/2023;
27;1;0;1.000,40;1.000,40;ELIOS Impianti di Fois Oscar;Z95393202F;SALDO Fatt.n. 12  del 13/01/2023;16/01/2023;21412;22;502;2;Spese in conto capitale;2;Investimenti fissi lordi e acquisto di terreni;1;Beni materiali;9;Beni immobili;999;Beni immobili n.a.c.;16/01/2023;
28;1;0;51,11;51,11;VACCA GIANCARMINE;Z4B386DE59;SALDO Fatt.n. FPA 7/22  del 31/12/2022 FORNITURA MATERIALE VARIO PER EVENTO COMUNALE;16/01/2023;1711;21;398;1;Spese correnti;3;Acquisto di beni e servizi;2;Acquisto di servizi;99;Altri servizi;999;Altri servizi diversi n.a.c.;16/01/2023;
29;1;0;170;170;OMESSO NOMINATIVO NEL RISPETTO DELLA NORMATIVA SULLA PROTEZIONE DATI PERSONALI;ZBA38DA939;SALDO Fatt.n. E/45  del 12/12/2022 QUOTA ISCRIZ.CORSO DI FORMAZIONE APPALTI PUBBLICI-DIP.AREA TECNICA;16/01/2023;1207;2;428;1;Spese correnti;3;Acquisto di beni e servizi;2;Acquisto di servizi;4;Acquisto di servizi per formazione e addestramento del personale dell'ente;4;Acquisto di servizi per formazione obbligatoria;16/01/2023;
30;1;0;793;793;FormaMentis Digitale srl;Z2235255F9;SALDO Fatt.n. 0000151  del 30/12/2022 SERVIZIO DI SUPPORTO AL RESPONSABILE DELLA TRANSIZIONE DIGITALE;16/01/2023;1207;6;115;1;Spese correnti;3;Acquisto di beni e servizi;2;Acquisto di servizi;11;Prestazioni professionali e specialistiche;999;Altre prestazioni professionali e specialistiche n.a.c.;16/01/2023;
31;1;0;5.837,70;5.837,70;"LA GHIANDA  A.R.L. COOPERATIVA SOCIALE ""B""";ZDD35D4D74;SALDO Fatt.n. 1/330  del 31/12/2022 SERVIZIO MESE DI   DICEMBRE   2022;16/01/2023;10216;1;154;1;Spese correnti;3;Acquisto di beni e servizi;2;Acquisto di servizi;15;Contratti di servizio pubblico;999;Altre spese per contratti di servizio pubblico;16/01/2023;
32;1;0;121,32;121,32;TIM S.P.A.;Z073027FB0;SALDO Fatt.n. 5120000684  del 20/12/2022 1BIM 2023;16/01/2023;1207;9;19;1;Spese correnti;3;Acquisto di beni e servizi;2;Acquisto di servizi;5;Utenze e canoni;1;Telefonia fissa;16/01/2023;
33;1;0;120,76;120,76;TIM S.P.A.;Z073027FB0;SALDO Fatt.n. 5120000732  del 20/12/2022 1BIM 2023;16/01/2023;1207;9;19;1;Spese correnti;3;Acquisto di beni e servizi;2;Acquisto di servizi;5;Utenze e canoni;1;Telefonia fissa;16/01/2023;
34;1;0;230,38;230,38;VACCA GIANCARMINE;ZD5358A211;ACCONTO Fatt.n. FPA 8/22  del 31/12/2022 FORNITURA  MATERIALE PICCOLE MANUTENZIONI;16/01/2023;4310;1;135;1;Spese correnti;3;Acquisto di beni e servizi;1;Acquisto di beni;2;Altri beni di consumo;999;Altri beni e materiali di consumo n.a.c.;16/01/2023;
35;1;0;218,27;218,27;VACCA GIANCARMINE;ZD5358A211;SALDO Fatt.n. FPA 8/22  del 31/12/2022 FORNITURA  MATERIALE PICCOLE MANUTENZIONI;16/01/2023;8112;1;136;1;Spese correnti;3;Acquisto di beni e servizi;1;Acquisto di beni;2;Altri beni di consumo;999;Altri beni e materiali di consumo n.a.c.;16/01/2023;
36;1;0;191,76;191,76;ABBANOA S.P.A.; ;SALDO Fatt.n. 0150020220003428500  del 23/12/2022 FORNITURA SERVIZIO IDRICO MUNICIPIO;16/01/2023;1207;18;21;1;Spese correnti;3;Acquisto di beni e servizi;2;Acquisto di servizi;5;Utenze e canoni;5;Acqua;16/01/2023;
37;1;0;95,35;95,35;ABBANOA S.P.A.; ;SALDO Fatt.n. 0150020220003429300  del 23/12/2022 FORNITURA SERVIZIO IDRICO PALESTRA;16/01/2023;1207;18;21;1;Spese correnti;3;Acquisto di beni e servizi;2;Acquisto di servizi;5;Utenze e canoni;5;Acqua;16/01/2023;
38;1;0;112,53;112,53;ABBANOA S.P.A.; ;SALDO Fatt.n. 0150020220003428800  del 23/12/2022 fornitura servizio idrico zampillo via Zanardelli;16/01/2023;9416;1;27;1;Spese correnti;3;Acquisto di beni e servizi;2;Acquisto di servizi;5;Utenze e canoni;5;Acqua;16/01/2023;
39;1;0;67,13;67,13;ABBANOA S.P.A.; ;SALDO Fatt.n. 0150020220003428600  del 23/12/2022 B/Bollettazione;16/01/2023;9416;1;27;1;Spese correnti;3;Acquisto di beni e servizi;2;Acquisto di servizi;5;Utenze e canoni;5;Acqua;16/01/2023;
40;1;0;91,97;91,97;ABBANOA S.P.A.; ;SALDO Fatt.n. 0150020220003434500  del 23/12/2022 fornitura servizio idrico campo sportivo;16/01/2023;6211;7;30;1;Spese correnti;3;Acquisto di beni e servizi;2;Acquisto di servizi;5;Utenze e canoni;5;Acqua;16/01/2023;
41;1;0;223,72;223,72;ABBANOA S.P.A.; ;SALDO Fatt.n. 0150020220003429400  del 23/12/2022 fornitura servizio idrico;16/01/2023;1207;18;21;1;Spese correnti;3;Acquisto di beni e servizi;2;Acquisto di servizi;5;Utenze e canoni;5;Acqua;16/01/2023;
42;1;0;134,33;134,33;ABBANOA S.P.A.; ;SALDO Fatt.n. 0150020220003429200  del 23/12/2022 fornitura servizio idrico ex-Esmas via Zanardelli n. 16;16/01/2023;4109;3;22;1;Spese correnti;3;Acquisto di beni e servizi;2;Acquisto di servizi;5;Utenze e canoni;5;Acqua;16/01/2023;
43;1;0;195,48;195,48;ABBANOA S.P.A.; ;SALDO Fatt.n. 0150020220003428700  del 23/12/2022 fornitura servizio idrico cimitero;16/01/2023;10518;1;29;1;Spese correnti;3;Acquisto di beni e servizi;2;Acquisto di servizi;5;Utenze e canoni;5;Acqua;16/01/2023;
44;1;0;48,72;48,72;ABBANOA S.P.A.; ;SALDO Fatt.n. 0150020220003429000  del 23/12/2022 fornitura servizio idrico fontanella piazza carmine;16/01/2023;9416;1;27;1;Spese correnti;3;Acquisto di beni e servizi;2;Acquisto di servizi;5;Utenze e canoni;5;Acqua;16/01/2023;
45;1;0;75,09;75,09;ABBANOA S.P.A.; ;SALDO Fatt.n. 0150020220003428400  del 23/12/2022 fornitura servizio idrico ex-municipio;16/01/2023;9416;1;27;1;Spese correnti;3;Acquisto di beni e servizi;2;Acquisto di servizi;5;Utenze e canoni;5;Acqua;16/01/2023;
46;1;0;212,49;212,49;ABBANOA S.P.A.; ;SALDO Fatt.n. 0150020220003428900  del 23/12/2022 fornitura servizio idrico scuole medie;16/01/2023;4311;5;24;1;Spese correnti;3;Acquisto di beni e servizi;2;Acquisto di servizi;5;Utenze e canoni;5;Acqua;16/01/2023;
47;1;0;146,03;146,03;ABBANOA S.P.A.; ;SALDO Fatt.n. 0150020220003429100  del 23/12/2022 fornitura servizio idrico ex-casa Piras;16/01/2023;1207;18;21;1;Spese correnti;3;Acquisto di beni e servizi;2;Acquisto di servizi;5;Utenze e canoni;5;Acqua;16/01/2023;
48;1;0;11,72;11,72;ABBANOA S.P.A.; ;ACCONTO Fatt.n. 0150020220003434600  del 23/12/2022 fornitura servizio idrico Monte Granatico;16/01/2023;5210;2;26;1;Spese correnti;3;Acquisto di beni e servizi;2;Acquisto di servizi;5;Utenze e canoni;5;Acqua;16/01/2023;
49;1;0;59,99;59,99;ABBANOA S.P.A.; ;SALDO Fatt.n. 0150020220003434600  del 23/12/2022 fornitura servizio idrico Monte Granatico;16/01/2023;1207;18;21;1;Spese correnti;3;Acquisto di beni e servizi;2;Acquisto di servizi;5;Utenze e canoni;5;Acqua;16/01/2023;
50;1;0;5.194,04;5.194,04;SIRIGU MARIA CARMELA; ;SALDO Fatt.n. 2/2  del 09/01/2023;17/01/2023;1106;6;331;1;Spese correnti;3;Acquisto di beni e servizi;2;Acquisto di servizi;1;Organi e incarichi istituzionali dell'amministrazione;8;Compensi agli organi istituzionali di revisione, di controllo ed altri incarichi istituzionali dell'amministrazione;17/01/2023;
51;1;0;2.608,20;2.608,20;OMESSO NOMINATIVO NEL RISPETTO DELLA NORMATIVA SULLA PROTEZIONE DATI PERSONALI; ;STIPENDI MESE DI: GENNAIO 23;17/01/2023;1106;1;39;1;Spese correnti;3;Acquisto di beni e servizi;2;Acquisto di servizi;1;Organi e incarichi istituzionali dell'amministrazione;1;Organi istituzionali dell'amministrazione - Indennità;17/01/2023;
54;1;0;250;250;OMESSO NOMINATIVO NEL RISPETTO DELLA NORMATIVA SULLA PROTEZIONE DATI PERSONALI; ;Legge 162/98. Anno 2022. Liquidazione Buste Paga Dicembre a vari beneficiari;18/01/2023;10446;3;90;1;Spese correnti;4;Trasferimenti correnti;2;Trasferimenti correnti a Famiglie;5;Altri trasferimenti a famiglie;999;Altri trasferimenti a famiglie n.a.c.;18/01/2023;
55;1;0;327,13;327,13;OMESSO NOMINATIVO NEL RISPETTO DELLA NORMATIVA SULLA PROTEZIONE DATI PERSONALI; ;Legge 162/98. Anno 2022. Liquidazione Buste Paga Dicembre a vari beneficiari;18/01/2023;10446;3;250;1;Spese correnti;4;Trasferimenti correnti;2;Trasferimenti correnti a Famiglie;5;Altri trasferimenti a famiglie;999;Altri trasferimenti a famiglie n.a.c.;18/01/2023;
56;1;0;187,5;187,5;OMESSO NOMINATIVO NEL RISPETTO DELLA NORMATIVA SULLA PROTEZIONE DATI PERSONALI; ;Legge 162/98. Anno 2022. Liquidazione Buste Paga Dicembre a vari beneficiari;18/01/2023;10446;3;251;1;Spese correnti;4;Trasferimenti correnti;2;Trasferimenti correnti a Famiglie;5;Altri trasferimenti a famiglie;999;Altri trasferimenti a famiglie n.a.c.;18/01/2023;
57;1;0;159,4;159,4;OMESSO NOMINATIVO NEL RISPETTO DELLA NORMATIVA SULLA PROTEZIONE DATI PERSONALI; ;Legge 162/98. Anno 2022. Liquidazione Buste Paga Dicembre a vari beneficiari;18/01/2023;10446;3;252;1;Spese correnti;4;Trasferimenti correnti;2;Trasferimenti correnti a Famiglie;5;Altri trasferimenti a famiglie;999;Altri trasferimenti a famiglie n.a.c.;18/01/2023;
58;1;0;268,96;268,96;OMESSO NOMINATIVO NEL RISPETTO DELLA NORMATIVA SULLA PROTEZIONE DATI PERSONALI; ;Legge 162/98. Anno 2022. Liquidazione Buste Paga Dicembre a vari beneficiari;18/01/2023;10446;3;347;1;Spese correnti;4;Trasferimenti correnti;2;Trasferimenti correnti a Famiglie;5;Altri trasferimenti a famiglie;999;Altri trasferimenti a famiglie n.a.c.;18/01/2023;
59;1;0;280,25;280,25;OMESSO NOMINATIVO NEL RISPETTO DELLA NORMATIVA SULLA PROTEZIONE DATI PERSONALI; ;Legge 162/98. Anno 2022. Liquidazione Buste Paga Dicembre a vari beneficiari;18/01/2023;10446;3;363;1;Spese correnti;4;Trasferimenti correnti;2;Trasferimenti correnti a Famiglie;5;Altri trasferimenti a famiglie;999;Altri trasferimenti a famiglie n.a.c.;18/01/2023;
60;1;0;395,84;395,84;OMESSO NOMINATIVO NEL RISPETTO DELLA NORMATIVA SULLA PROTEZIONE DATI PERSONALI; ;Legge 162/98. Anno 2022. Liquidazione Buste Paga Dicembre a vari beneficiari;18/01/2023;10446;3;429;1;Spese correnti;4;Trasferimenti correnti;2;Trasferimenti correnti a Famiglie;5;Altri trasferimenti a famiglie;999;Altri trasferimenti a famiglie n.a.c.;18/01/2023;
61;1;0;446,28;446,28;OMESSO NOMINATIVO NEL RISPETTO DELLA NORMATIVA SULLA PROTEZIONE DATI PERSONALI; ;Legge 162/98. Anno 2022. Liquidazione Buste Paga Dicembre a vari beneficiari;18/01/2023;10446;3;431;1;Spese correnti;4;Trasferimenti correnti;2;Trasferimenti correnti a Famiglie;5;Altri trasferimenti a famiglie;999;Altri trasferimenti a famiglie n.a.c.;18/01/2023;
62;1;0;269,17;269,17;OMESSO NOMINATIVO NEL RISPETTO DELLA NORMATIVA SULLA PROTEZIONE DATI PERSONALI; ;Legge 162/98. Anno 2022. Liquidazione Buste Paga Dicembre a vari beneficiari;18/01/2023;10446;3;432;1;Spese correnti;4;Trasferimenti correnti;2;Trasferimenti correnti a Famiglie;5;Altri trasferimenti a famiglie;999;Altri trasferimenti a famiglie n.a.c.;18/01/2023;
63;1;0;151,57;151,57;OMESSO NOMINATIVO NEL RISPETTO DELLA NORMATIVA SULLA PROTEZIONE DATI PERSONALI; ;Legge 162/98. Anno 2022. Liquidazione Buste Paga Dicembre a vari beneficiari;18/01/2023;10446;3;433;1;Spese correnti;4;Trasferimenti correnti;2;Trasferimenti correnti a Famiglie;5;Altri trasferimenti a famiglie;999;Altri trasferimenti a famiglie n.a.c.;18/01/2023;
64;1;0;181,88;181,88;OMESSO NOMINATIVO NEL RISPETTO DELLA NORMATIVA SULLA PROTEZIONE DATI PERSONALI; ;Legge 162/98. Anno 2022. Liquidazione Buste Paga Dicembre a vari beneficiari;18/01/2023;10446;3;434;1;Spese correnti;4;Trasferimenti correnti;2;Trasferimenti correnti a Famiglie;5;Altri trasferimenti a famiglie;999;Altri trasferimenti a famiglie n.a.c.;18/01/2023;
65;1;0;600,9;600,9;OMESSO NOMINATIVO NEL RISPETTO DELLA NORMATIVA SULLA PROTEZIONE DATI PERSONALI; ;Legge 162/98. Anno 2022. Liquidazione Buste Paga Dicembre a vari beneficiari;18/01/2023;10446;3;435;1;Spese correnti;4;Trasferimenti correnti;2;Trasferimenti correnti a Famiglie;5;Altri trasferimenti a famiglie;999;Altri trasferimenti a famiglie n.a.c.;18/01/2023;
66;1;0;265,63;265,63;OMESSO NOMINATIVO NEL RISPETTO DELLA NORMATIVA SULLA PROTEZIONE DATI PERSONALI; ;Legge 162/98. Anno 2022. Liquidazione Buste Paga Dicembre a vari beneficiari;18/01/2023;10446;3;438;1;Spese correnti;4;Trasferimenti correnti;2;Trasferimenti correnti a Famiglie;5;Altri trasferimenti a famiglie;999;Altri trasferimenti a famiglie n.a.c.;18/01/2023;
67;1;0;318,75;318,75;OMESSO NOMINATIVO NEL RISPETTO DELLA NORMATIVA SULLA PROTEZIONE DATI PERSONALI; ;Legge 162/98. Anno 2022. Liquidazione Buste Paga Dicembre a vari beneficiari;18/01/2023;10446;3;439;1;Spese correnti;4;Trasferimenti correnti;2;Trasferimenti correnti a Famiglie;5;Altri trasferimenti a famiglie;999;Altri trasferimenti a famiglie n.a.c.;18/01/2023;
68;1;0;1.278,33;1.278,33;OMESSO NOMINATIVO NEL RISPETTO DELLA NORMATIVA SULLA PROTEZIONE DATI PERSONALI; ;Legge 162/98. Anno 2022. Liquidazione Buste Paga Dicembre a vari beneficiari;18/01/2023;10446;3;440;1;Spese correnti;4;Trasferimenti correnti;2;Trasferimenti correnti a Famiglie;5;Altri trasferimenti a famiglie;999;Altri trasferimenti a famiglie n.a.c.;18/01/2023;
69;1;0;727,5;727,5;OMESSO NOMINATIVO NEL RISPETTO DELLA NORMATIVA SULLA PROTEZIONE DATI PERSONALI; ;Legge 162/98. Anno 2022. Liquidazione Buste Paga Dicembre a vari beneficiari;18/01/2023;10446;3;442;1;Spese correnti;4;Trasferimenti correnti;2;Trasferimenti correnti a Famiglie;5;Altri trasferimenti a famiglie;999;Altri trasferimenti a famiglie n.a.c.;18/01/2023;
70;1;0;151,57;151,57;OMESSO NOMINATIVO NEL RISPETTO DELLA NORMATIVA SULLA PROTEZIONE DATI PERSONALI; ;Legge 162/98. Anno 2022. Liquidazione Buste Paga Dicembre a vari beneficiari;18/01/2023;10446;3;443;1;Spese correnti;4;Trasferimenti correnti;2;Trasferimenti correnti a Famiglie;5;Altri trasferimenti a famiglie;999;Altri trasferimenti a famiglie n.a.c.;18/01/2023;
71;1;0;187,5;187,5;OMESSO NOMINATIVO NEL RISPETTO DELLA NORMATIVA SULLA PROTEZIONE DATI PERSONALI; ;Legge 162/98. Anno 2022. Liquidazione Buste Paga Dicembre a vari beneficiari;18/01/2023;10446;3;446;1;Spese correnti;4;Trasferimenti correnti;2;Trasferimenti correnti a Famiglie;5;Altri trasferimenti a famiglie;999;Altri trasferimenti a famiglie n.a.c.;18/01/2023;
72;1;0;390,42;390,42;OMESSO NOMINATIVO NEL RISPETTO DELLA NORMATIVA SULLA PROTEZIONE DATI PERSONALI; ;Legge 162/98. Anno 2022. Liquidazione Buste Paga Dicembre a vari beneficiari;18/01/2023;10446;3;447;1;Spese correnti;4;Trasferimenti correnti;2;Trasferimenti correnti a Famiglie;5;Altri trasferimenti a famiglie;999;Altri trasferimenti a famiglie n.a.c.;18/01/2023;
73;1;0;166,67;166,67;OMESSO NOMINATIVO NEL RISPETTO DELLA NORMATIVA SULLA PROTEZIONE DATI PERSONALI; ;Legge 162/98. Anno 2022. Liquidazione Buste Paga Dicembre a vari beneficiari;18/01/2023;10446;3;449;1;Spese correnti;4;Trasferimenti correnti;2;Trasferimenti correnti a Famiglie;5;Altri trasferimenti a famiglie;999;Altri trasferimenti a famiglie n.a.c.;18/01/2023;
74;1;0;224,45;224,45;OMESSO NOMINATIVO NEL RISPETTO DELLA NORMATIVA SULLA PROTEZIONE DATI PERSONALI; ;Legge 162/98. Anno 2022. Liquidazione Buste Paga Dicembre a vari beneficiari;18/01/2023;10446;3;453;1;Spese correnti;4;Trasferimenti correnti;2;Trasferimenti correnti a Famiglie;5;Altri trasferimenti a famiglie;999;Altri trasferimenti a famiglie n.a.c.;18/01/2023;
75;1;0;924,22;924,22;OMESSO NOMINATIVO NEL RISPETTO DELLA NORMATIVA SULLA PROTEZIONE DATI PERSONALI; ;Legge 162/98. Anno 2022. Liquidazione Buste Paga Dicembre a vari beneficiari;18/01/2023;10446;3;455;1;Spese correnti;4;Trasferimenti correnti;2;Trasferimenti correnti a Famiglie;5;Altri trasferimenti a famiglie;999;Altri trasferimenti a famiglie n.a.c.;18/01/2023;
76;1;0;758,33;758,33;OMESSO NOMINATIVO NEL RISPETTO DELLA NORMATIVA SULLA PROTEZIONE DATI PERSONALI; ;Legge 162/98. Anno 2022. Liquidazione Buste Paga Dicembre a vari beneficiari;18/01/2023;10446;3;457;1;Spese correnti;4;Trasferimenti correnti;2;Trasferimenti correnti a Famiglie;5;Altri trasferimenti a famiglie;999;Altri trasferimenti a famiglie n.a.c.;18/01/2023;
77;1;0;250;250;OMESSO NOMINATIVO NEL RISPETTO DELLA NORMATIVA SULLA PROTEZIONE DATI PERSONALI; ;Legge 162/98. Anno 2022. Liquidazione Buste Paga Dicembre a vari beneficiari;18/01/2023;10446;3;458;1;Spese correnti;4;Trasferimenti correnti;2;Trasferimenti correnti a Famiglie;5;Altri trasferimenti a famiglie;999;Altri trasferimenti a famiglie n.a.c.;18/01/2023;
78;1;0;121,25;121,25;OMESSO NOMINATIVO NEL RISPETTO DELLA NORMATIVA SULLA PROTEZIONE DATI PERSONALI; ;Legge 162/98. Anno 2022. Liquidazione Buste Paga Dicembre a vari beneficiari;18/01/2023;10446;3;459;1;Spese correnti;4;Trasferimenti correnti;2;Trasferimenti correnti a Famiglie;5;Altri trasferimenti a famiglie;999;Altri trasferimenti a famiglie n.a.c.;18/01/2023;
79;1;0;156,25;156,25;OMESSO NOMINATIVO NEL RISPETTO DELLA NORMATIVA SULLA PROTEZIONE DATI PERSONALI; ;Legge 162/98. Anno 2022. Liquidazione Buste Paga Dicembre a vari beneficiari;18/01/2023;10446;3;460;1;Spese correnti;4;Trasferimenti correnti;2;Trasferimenti correnti a Famiglie;5;Altri trasferimenti a famiglie;999;Altri trasferimenti a famiglie n.a.c.;18/01/2023;
80;1;0;500;500;OMESSO NOMINATIVO NEL RISPETTO DELLA NORMATIVA SULLA PROTEZIONE DATI PERSONALI; ;Legge 162/98. Anno 2022. Liquidazione Buste Paga Dicembre a vari beneficiari;18/01/2023;10446;3;462;1;Spese correnti;4;Trasferimenti correnti;2;Trasferimenti correnti a Famiglie;5;Altri trasferimenti a famiglie;999;Altri trasferimenti a famiglie n.a.c.;18/01/2023;
81;1;0;300;300;OMESSO NOMINATIVO NEL RISPETTO DELLA NORMATIVA SULLA PROTEZIONE DATI PERSONALI; ;Legge 162/98. Anno 2022. Liquidazione Buste Paga Dicembre a vari beneficiari;18/01/2023;10446;3;463;1;Spese correnti;4;Trasferimenti correnti;2;Trasferimenti correnti a Famiglie;5;Altri trasferimenti a famiglie;999;Altri trasferimenti a famiglie n.a.c.;18/01/2023;
82;1;0;500;500;OMESSO NOMINATIVO NEL RISPETTO DELLA NORMATIVA SULLA PROTEZIONE DATI PERSONALI; ;Legge 162/98. Anno 2022. Liquidazione Buste Paga Dicembre a vari beneficiari;18/01/2023;10446;3;464;1;Spese correnti;4;Trasferimenti correnti;2;Trasferimenti correnti a Famiglie;5;Altri trasferimenti a famiglie;999;Altri trasferimenti a famiglie n.a.c.;18/01/2023;
83;1;0;341,25;341,25;OMESSO NOMINATIVO NEL RISPETTO DELLA NORMATIVA SULLA PROTEZIONE DATI PERSONALI; ;Legge 162/98. Anno 2022. Liquidazione Buste Paga Dicembre a vari beneficiari;18/01/2023;10446;3;465;1;Spese correnti;4;Trasferimenti correnti;2;Trasferimenti correnti a Famiglie;5;Altri trasferimenti a famiglie;999;Altri trasferimenti a famiglie n.a.c.;18/01/2023;
84;1;0;106,25;106,25;OMESSO NOMINATIVO NEL RISPETTO DELLA NORMATIVA SULLA PROTEZIONE DATI PERSONALI; ;Legge 162/98. Anno 2022. Liquidazione Buste Paga Dicembre a vari beneficiari;18/01/2023;10446;3;468;1;Spese correnti;4;Trasferimenti correnti;2;Trasferimenti correnti a Famiglie;5;Altri trasferimenti a famiglie;999;Altri trasferimenti a famiglie n.a.c.;18/01/2023;
85;1;0;375;375;OMESSO NOMINATIVO NEL RISPETTO DELLA NORMATIVA SULLA PROTEZIONE DATI PERSONALI; ;Legge 162/98. Anno 2022. Liquidazione Buste Paga Dicembre a vari beneficiari;18/01/2023;10446;3;469;1;Spese correnti;4;Trasferimenti correnti;2;Trasferimenti correnti a Famiglie;5;Altri trasferimenti a famiglie;999;Altri trasferimenti a famiglie n.a.c.;18/01/2023;
86;1;0;176,25;176,25;OMESSO NOMINATIVO NEL RISPETTO DELLA NORMATIVA SULLA PROTEZIONE DATI PERSONALI; ;Legge 162/98. Anno 2022. Liquidazione Buste Paga Dicembre a vari beneficiari;18/01/2023;10446;3;470;1;Spese correnti;4;Trasferimenti correnti;2;Trasferimenti correnti a Famiglie;5;Altri trasferimenti a famiglie;999;Altri trasferimenti a famiglie n.a.c.;18/01/2023;
87;1;0;525,02;525,02;OMESSO NOMINATIVO NEL RISPETTO DELLA NORMATIVA SULLA PROTEZIONE DATI PERSONALI; ;Legge 162/98. Anno 2022. Liquidazione Buste Paga Dicembre a vari beneficiari;18/01/2023;10446;3;471;1;Spese correnti;4;Trasferimenti correnti;2;Trasferimenti correnti a Famiglie;5;Altri trasferimenti a famiglie;999;Altri trasferimenti a famiglie n.a.c.;18/01/2023;
88;1;0;542,4;542,4;Personale Assimilati a Lavoro Dipendente; ;GETTONI CONSIGLIERI COMUNALI ANNO 2022-NUOVA AMMINISTRAZIONE DA GIUGNO;18/01/2023;1106;2;298;1;Spese correnti;3;Acquisto di beni e servizi;2;Acquisto di servizi;1;Organi e incarichi istituzionali dell'amministrazione;1;Organi istituzionali dell'amministrazione - Indennità;18/01/2023;
91;1;0;822,59;822,59;LAGO E NURAGHE COOPERATIVA SOCIALE;Z6D3304454;SALDO Fatt.n. 10/PA  del 16/01/2023;19/01/2023;10216;10;298;1;Spese correnti;3;Acquisto di beni e servizi;2;Acquisto di servizi;15;Contratti di servizio pubblico;999;Altre spese per contratti di servizio pubblico;19/01/2023;
92;1;0;400;400;VACCA GIANCARMINE; ;SALDO Fatt.n. FPA 9/22  del 31/12/2022;19/01/2023;10418;19;321;1;Spese correnti;3;Acquisto di beni e servizi;1;Acquisto di beni;2;Altri beni di consumo;11;Generi alimentari;19/01/2023;
93;1;0;245,74;245,74;CASA DELLE STELLE ONLUS COOP. SOC.;Z67388CF26;SALDO Fatt.n. FATTPA 221_22  del 13/12/2022;19/01/2023;10413;8;408;1;Spese correnti;3;Acquisto di beni e servizi;2;Acquisto di servizi;15;Contratti di servizio pubblico;8;Contratti di servizio di assistenza sociale residenziale e semiresidenziale;19/01/2023;
94;1;0;600;600;A.N.U.T.E.L.; ;Quota associativa ANUTEL (Associazione Nazionale Uffici Tributi Enti Locali ) - liquidazione competenze 2023;19/01/2023;1228;1;42;1;Spese correnti;3;Acquisto di beni e servizi;2;Acquisto di servizi;99;Altri servizi;3;Quote di associazioni;19/01/2023;
95;1;0;1.333,01;1.333,01;OMESSO NOMINATIVO NEL RISPETTO DELLA NORMATIVA SULLA PROTEZIONE DATI PERSONALI; ;Programma Ritornare a casa Plus anno 2022. Liquidazione in favore di un beneficiario del mese di Dicembre 2022;19/01/2023;10418;30;260;1;Spese correnti;4;Trasferimenti correnti;2;Trasferimenti correnti a Famiglie;2;Interventi assistenziali;999;Altri assegni e sussidi assistenziali;19/01/2023;
96;1;0;600;600;OMESSO NOMINATIVO NEL RISPETTO DELLA NORMATIVA SULLA PROTEZIONE DATI PERSONALI; ;Programma Ritornare a casa Plus anno 2022. Liquidazione in favore di un beneficiario del mese di Dicembre 2022;19/01/2023;10418;30;293;1;Spese correnti;4;Trasferimenti correnti;2;Trasferimenti correnti a Famiglie;2;Interventi assistenziali;999;Altri assegni e sussidi assistenziali;19/01/2023;
126;1;0;866,08;866,08;OMESSO NOMINATIVO NEL RISPETTO DELLA NORMATIVA SULLA PROTEZIONE DATI PERSONALI; ;Mi prendo cura Anno 2022. Liquidazione di un beneficiario;23/01/2023;10418;33;266;1;Spese correnti;4;Trasferimenti correnti;2;Trasferimenti correnti a Famiglie;2;Interventi assistenziali;999;Altri assegni e sussidi assistenziali;23/01/2023;
127;1;0;2.030,08;2.030,08;OMESSO NOMINATIVO NEL RISPETTO DELLA NORMATIVA SULLA PROTEZIONE DATI PERSONALI;ZE72E0E59F;SALDO Fatt.n. FATTPA 4_23  del 19/01/2023;23/01/2023;1611;2;352;1;Spese correnti;3;Acquisto di beni e servizi;2;Acquisto di servizi;11;Prestazioni professionali e specialistiche;999;Altre prestazioni professionali e specialistiche n.a.c.;23/01/2023;
128;1;0;312,5;312,5;OMESSO NOMINATIVO NEL RISPETTO DELLA NORMATIVA SULLA PROTEZIONE DATI PERSONALI; ;Legge 162/98. Piani personalizzati di sostegno. Liquidazione fatture alla Soc. Coop Sociale Laurus. Gestione indiretta. Ottobre e Novembre2022;23/01/2023;10446;3;232;1;Spese correnti;4;Trasferimenti correnti;2;Trasferimenti correnti a Famiglie;5;Altri trasferimenti a famiglie;999;Altri trasferimenti a famiglie n.a.c.;23/01/2023;
129;1;0;180;180;OMESSO NOMINATIVO NEL RISPETTO DELLA NORMATIVA SULLA PROTEZIONE DATI PERSONALI; ;Legge 162/98. Piani personalizzati di sostegno. Liquidazione fatture alla Soc. Coop Sociale Laurus. Gestione indiretta. Ottobre e Novembre2022;23/01/2023;10446;3;328;1;Spese correnti;4;Trasferimenti correnti;2;Trasferimenti correnti a Famiglie;5;Altri trasferimenti a famiglie;999;Altri trasferimenti a famiglie n.a.c.;23/01/2023;
130;1;0;220;220;OMESSO NOMINATIVO NEL RISPETTO DELLA NORMATIVA SULLA PROTEZIONE DATI PERSONALI; ;Legge 162/98. Piani personalizzati di sostegno. Liquidazione fatture alla Soc. Coop Sociale Laurus. Gestione indiretta. Ottobre e Novembre2022;23/01/2023;10446;3;329;1;Spese correnti;4;Trasferimenti correnti;2;Trasferimenti correnti a Famiglie;5;Altri trasferimenti a famiglie;999;Altri trasferimenti a famiglie n.a.c.;23/01/2023;
131;1;0;250;250;OMESSO NOMINATIVO NEL RISPETTO DELLA NORMATIVA SULLA PROTEZIONE DATI PERSONALI; ;Legge 162/98. Piani personalizzati di sostegno. Liquidazione fatture alla Soc. Coop Sociale Laurus. Gestione indiretta. Ottobre e Novembre2022;23/01/2023;10446;3;333;1;Spese correnti;4;Trasferimenti correnti;2;Trasferimenti correnti a Famiglie;5;Altri trasferimenti a famiglie;999;Altri trasferimenti a famiglie n.a.c.;23/01/2023;
132;1;0;238,75;238,75;OMESSO NOMINATIVO NEL RISPETTO DELLA NORMATIVA SULLA PROTEZIONE DATI PERSONALI; ;Legge 162/98. Piani personalizzati di sostegno. Liquidazione fatture alla Soc. Coop Sociale Laurus. Gestione indiretta. Ottobre e Novembre2022;23/01/2023;10446;3;336;1;Spese correnti;4;Trasferimenti correnti;2;Trasferimenti correnti a Famiglie;5;Altri trasferimenti a famiglie;999;Altri trasferimenti a famiglie n.a.c.;23/01/2023;
133;1;0;170;170;OMESSO NOMINATIVO NEL RISPETTO DELLA NORMATIVA SULLA PROTEZIONE DATI PERSONALI; ;Legge 162/98. Piani personalizzati di sostegno. Liquidazione fatture alla Soc. Coop Sociale Laurus. Gestione indiretta. Ottobre e Novembre2022;23/01/2023;10446;3;337;1;Spese correnti;4;Trasferimenti correnti;2;Trasferimenti correnti a Famiglie;5;Altri trasferimenti a famiglie;999;Altri trasferimenti a famiglie n.a.c.;23/01/2023;
134;1;0;370;370;OMESSO NOMINATIVO NEL RISPETTO DELLA NORMATIVA SULLA PROTEZIONE DATI PERSONALI; ;Legge 162/98. Piani personalizzati di sostegno. Liquidazione fatture alla Soc. Coop Sociale Laurus. Gestione indiretta. Ottobre e Novembre2022;23/01/2023;10446;3;343;1;Spese correnti;4;Trasferimenti correnti;2;Trasferimenti correnti a Famiglie;5;Altri trasferimenti a famiglie;999;Altri trasferimenti a famiglie n.a.c.;23/01/2023;
135;1;0;750;750;OMESSO NOMINATIVO NEL RISPETTO DELLA NORMATIVA SULLA PROTEZIONE DATI PERSONALI; ;Legge 162/98. Piani personalizzati di sostegno. Liquidazione fatture alla Soc. Coop Sociale Laurus. Gestione indiretta. Ottobre e Novembre2022;23/01/2023;10446;3;346;1;Spese correnti;4;Trasferimenti correnti;2;Trasferimenti correnti a Famiglie;5;Altri trasferimenti a famiglie;999;Altri trasferimenti a famiglie n.a.c.;23/01/2023;
136;1;0;300;300;OMESSO NOMINATIVO NEL RISPETTO DELLA NORMATIVA SULLA PROTEZIONE DATI PERSONALI; ;Legge 162/98. Piani personalizzati di sostegno. Liquidazione fatture alla Soc. Coop Sociale Laurus. Gestione indiretta. Ottobre e Novembre2022;23/01/2023;10446;3;351;1;Spese correnti;4;Trasferimenti correnti;2;Trasferimenti correnti a Famiglie;5;Altri trasferimenti a famiglie;999;Altri trasferimenti a famiglie n.a.c.;23/01/2023;
137;1;0;335;335;OMESSO NOMINATIVO NEL RISPETTO DELLA NORMATIVA SULLA PROTEZIONE DATI PERSONALI; ;Legge 162/98. Piani personalizzati di sostegno. Liquidazione fatture alla Soc. Coop Sociale Laurus. Gestione indiretta. Ottobre e Novembre2022;23/01/2023;10446;3;356;1;Spese correnti;4;Trasferimenti correnti;2;Trasferimenti correnti a Famiglie;5;Altri trasferimenti a famiglie;999;Altri trasferimenti a famiglie n.a.c.;23/01/2023;
138;1;0;300;300;OMESSO NOMINATIVO NEL RISPETTO DELLA NORMATIVA SULLA PROTEZIONE DATI PERSONALI; ;Legge 162/98. Piani personalizzati di sostegno. Liquidazione fatture alla Soc. Coop Sociale Laurus. Gestione indiretta. Ottobre e Novembre2022;23/01/2023;10446;3;357;1;Spese correnti;4;Trasferimenti correnti;2;Trasferimenti correnti a Famiglie;5;Altri trasferimenti a famiglie;999;Altri trasferimenti a famiglie n.a.c.;23/01/2023;
139;1;0;325;325;OMESSO NOMINATIVO NEL RISPETTO DELLA NORMATIVA SULLA PROTEZIONE DATI PERSONALI; ;Legge 162/98. Piani personalizzati di sostegno. Liquidazione fatture alla Soc. Coop Sociale Laurus. Gestione indiretta. Ottobre e Novembre2022;23/01/2023;10446;3;362;1;Spese correnti;4;Trasferimenti correnti;2;Trasferimenti correnti a Famiglie;5;Altri trasferimenti a famiglie;999;Altri trasferimenti a famiglie n.a.c.;23/01/2023;
140;1;0;180;180;OMESSO NOMINATIVO NEL RISPETTO DELLA NORMATIVA SULLA PROTEZIONE DATI PERSONALI; ;Legge 162/98. Piani personalizzati di sostegno. Liquidazione fatture alla Soc. Coop Sociale Laurus. Gestione indiretta. Ottobre e Novembre2022;23/01/2023;10446;3;436;1;Spese correnti;4;Trasferimenti correnti;2;Trasferimenti correnti a Famiglie;5;Altri trasferimenti a famiglie;999;Altri trasferimenti a famiglie n.a.c.;23/01/2023;
141;1;0;220;220;OMESSO NOMINATIVO NEL RISPETTO DELLA NORMATIVA SULLA PROTEZIONE DATI PERSONALI; ;Legge 162/98. Piani personalizzati di sostegno. Liquidazione fatture alla Soc. Coop Sociale Laurus. Gestione indiretta. Ottobre e Novembre2022;23/01/2023;10446;3;437;1;Spese correnti;4;Trasferimenti correnti;2;Trasferimenti correnti a Famiglie;5;Altri trasferimenti a famiglie;999;Altri trasferimenti a famiglie n.a.c.;23/01/2023;
142;1;0;121,25;121,25;OMESSO NOMINATIVO NEL RISPETTO DELLA NORMATIVA SULLA PROTEZIONE DATI PERSONALI; ;Legge 162/98. Piani personalizzati di sostegno. Liquidazione fatture alla Soc. Coop Sociale Laurus. Gestione indiretta. Ottobre e Novembre2022;23/01/2023;10446;3;444;1;Spese correnti;4;Trasferimenti correnti;2;Trasferimenti correnti a Famiglie;5;Altri trasferimenti a famiglie;999;Altri trasferimenti a famiglie n.a.c.;23/01/2023;
143;1;0;170;170;OMESSO NOMINATIVO NEL RISPETTO DELLA NORMATIVA SULLA PROTEZIONE DATI PERSONALI; ;Legge 162/98. Piani personalizzati di sostegno. Liquidazione fatture alla Soc. Coop Sociale Laurus. Gestione indiretta. Ottobre e Novembre2022;23/01/2023;10446;3;445;1;Spese correnti;4;Trasferimenti correnti;2;Trasferimenti correnti a Famiglie;5;Altri trasferimenti a famiglie;999;Altri trasferimenti a famiglie n.a.c.;23/01/2023;
144;1;0;750;750;OMESSO NOMINATIVO NEL RISPETTO DELLA NORMATIVA SULLA PROTEZIONE DATI PERSONALI; ;Legge 162/98. Piani personalizzati di sostegno. Liquidazione fatture alla Soc. Coop Sociale Laurus. Gestione indiretta. Ottobre e Novembre2022;23/01/2023;10446;3;454;1;Spese correnti;4;Trasferimenti correnti;2;Trasferimenti correnti a Famiglie;5;Altri trasferimenti a famiglie;999;Altri trasferimenti a famiglie n.a.c.;23/01/2023;
145;1;0;300;300;OMESSO NOMINATIVO NEL RISPETTO DELLA NORMATIVA SULLA PROTEZIONE DATI PERSONALI; ;Legge 162/98. Piani personalizzati di sostegno. Liquidazione fatture alla Soc. Coop Sociale Laurus. Gestione indiretta. Ottobre e Novembre2022;23/01/2023;10446;3;461;1;Spese correnti;4;Trasferimenti correnti;2;Trasferimenti correnti a Famiglie;5;Altri trasferimenti a famiglie;999;Altri trasferimenti a famiglie n.a.c.;23/01/2023;
146;1;0;335;335;OMESSO NOMINATIVO NEL RISPETTO DELLA NORMATIVA SULLA PROTEZIONE DATI PERSONALI; ;Legge 162/98. Piani personalizzati di sostegno. Liquidazione fatture alla Soc. Coop Sociale Laurus. Gestione indiretta. Ottobre e Novembre2022;23/01/2023;10446;3;466;1;Spese correnti;4;Trasferimenti correnti;2;Trasferimenti correnti a Famiglie;5;Altri trasferimenti a famiglie;999;Altri trasferimenti a famiglie n.a.c.;23/01/2023;
147;1;0;300;300;OMESSO NOMINATIVO NEL RISPETTO DELLA NORMATIVA SULLA PROTEZIONE DATI PERSONALI; ;Legge 162/98. Piani personalizzati di sostegno. Liquidazione fatture alla Soc. Coop Sociale Laurus. Gestione indiretta. Ottobre e Novembre2022;23/01/2023;10446;3;467;1;Spese correnti;4;Trasferimenti correnti;2;Trasferimenti correnti a Famiglie;5;Altri trasferimenti a famiglie;999;Altri trasferimenti a famiglie n.a.c.;23/01/2023;
148;1;0;11,24;11,24;VACCA GIANCARMINE;Z4B386DE59;SALDO Fatt.n. FPA 7/22  del 31/12/2022 FORNITURA MATERIALE VARIO PER EVENTO COMUNALE;23/01/2023;1711;21;398;1;Spese correnti;3;Acquisto di beni e servizi;2;Acquisto di servizi;99;Altri servizi;999;Altri servizi diversi n.a.c.;23/01/2023;
149;1;0;140,95;140,95;ENEL ENERGIA S.P.A.; ;SALDO Fatt.n. 004297927002  del 16/01/2023;23/01/2023;6211;8;14;1;Spese correnti;3;Acquisto di beni e servizi;2;Acquisto di servizi;5;Utenze e canoni;4;Energia elettrica;23/01/2023;
150;1;0;28,93;28,93;ENEL ENERGIA S.P.A.; ;ACCONTO Fatt.n. 004295268061  del 14/01/2023;23/01/2023;8214;1;9;1;Spese correnti;3;Acquisto di beni e servizi;2;Acquisto di servizi;5;Utenze e canoni;4;Energia elettrica;23/01/2023;
151;1;0;2.174,17;2.174,17;ENEL ENERGIA S.P.A.; ;SALDO Fatt.n. 004295268063  del 14/01/2023;23/01/2023;8214;1;11;1;Spese correnti;3;Acquisto di beni e servizi;2;Acquisto di servizi;5;Utenze e canoni;4;Energia elettrica;23/01/2023;
152;1;0;138,97;138,97;ENEL ENERGIA S.P.A.; ;SALDO Fatt.n. 004295268061  del 14/01/2023;23/01/2023;8214;1;11;1;Spese correnti;3;Acquisto di beni e servizi;2;Acquisto di servizi;5;Utenze e canoni;4;Energia elettrica;23/01/2023;
153;1;0;645,33;645,33;ENEL ENERGIA S.P.A.; ;SALDO Fatt.n. 004295268062  del 14/01/2023;23/01/2023;8214;1;11;1;Spese correnti;3;Acquisto di beni e servizi;2;Acquisto di servizi;5;Utenze e canoni;4;Energia elettrica;23/01/2023;
154;1;0;962,2;962,2;ENEL ENERGIA S.P.A.; ;SALDO Fatt.n. 004296541282  del 15/01/2023;23/01/2023;8214;1;11;1;Spese correnti;3;Acquisto di beni e servizi;2;Acquisto di servizi;5;Utenze e canoni;4;Energia elettrica;23/01/2023;
155;1;0;2.379,82;2.379,82;ENEL ENERGIA S.P.A.; ;SALDO Fatt.n. 004297927001  del 16/01/2023;23/01/2023;8214;1;11;1;Spese correnti;3;Acquisto di beni e servizi;2;Acquisto di servizi;5;Utenze e canoni;4;Energia elettrica;23/01/2023;
156;1;0;143,32;143,32;I.M.E.CO. IMPIANTI SRL;Z63322C276;ACCONTO Fatt.n. 8/PA  del 17/01/2023;23/01/2023;9618;2;178;1;Spese correnti;3;Acquisto di beni e servizi;2;Acquisto di servizi;99;Altri servizi;999;Altri servizi diversi n.a.c.;23/01/2023;
157;1;0;517,51;517,51;I.M.E.CO. IMPIANTI SRL;Z63322C276;SALDO Fatt.n. 8/PA  del 17/01/2023;23/01/2023;9619;7;177;1;Spese correnti;3;Acquisto di beni e servizi;2;Acquisto di servizi;99;Altri servizi;999;Altri servizi diversi n.a.c.;23/01/2023;
158;1;0;1.216,95;1.216,95;I.M.E.CO. IMPIANTI SRL;ZEF2F4F38D;SALDO Fatt.n. 6/PA  del 17/01/2023;25/01/2023;8214;2;435;1;Spese correnti;3;Acquisto di beni e servizi;2;Acquisto di servizi;9;Manutenzione ordinaria e riparazioni;8;Manutenzione ordinaria e riparazioni di beni immobili;25/01/2023;
159;1;0;400;400;OMESSO NOMINATIVO NEL RISPETTO DELLA NORMATIVA SULLA PROTEZIONE DATI PERSONALI; ;L.R. 23/2005 - LIQUIDAZIONE CONTRIBUTI ECONOMICI.;25/01/2023;10445;1;534;1;Spese correnti;4;Trasferimenti correnti;2;Trasferimenti correnti a Famiglie;5;Altri trasferimenti a famiglie;999;Altri trasferimenti a famiglie n.a.c.;25/01/2023;
160;1;0;400;400;OMESSO NOMINATIVO NEL RISPETTO DELLA NORMATIVA SULLA PROTEZIONE DATI PERSONALI; ;L.R. 23/2005 - LIQUIDAZIONE CONTRIBUTI ECONOMICI.;25/01/2023;10445;1;535;1;Spese correnti;4;Trasferimenti correnti;2;Trasferimenti correnti a Famiglie;5;Altri trasferimenti a famiglie;999;Altri trasferimenti a famiglie n.a.c.;25/01/2023;
161;1;0;500;500;OMESSO NOMINATIVO NEL RISPETTO DELLA NORMATIVA SULLA PROTEZIONE DATI PERSONALI; ;L.R. 23/2005 - LIQUIDAZIONE CONTRIBUTI ECONOMICI.;25/01/2023;10445;1;536;1;Spese correnti;4;Trasferimenti correnti;2;Trasferimenti correnti a Famiglie;5;Altri trasferimenti a famiglie;999;Altri trasferimenti a famiglie n.a.c.;25/01/2023;
162;1;0;198,72;198,72;ABBANOA S.P.A.; ;SALDO Fatt.n. 0150020220003820900  del 31/12/2022 B/Bollettazione;25/01/2023;1207;18;21;1;Spese correnti;3;Acquisto di beni e servizi;2;Acquisto di servizi;5;Utenze e canoni;5;Acqua;25/01/2023;
163;1;0;1.317,60;1.317,60;EDIL DES CAR di Desogus Carlo;Z7C33FB1C7;SALDO Fatt.n. 1  del 16/01/2023;25/01/2023;10520;1;33;1;Spese correnti;3;Acquisto di beni e servizi;2;Acquisto di servizi;15;Contratti di servizio pubblico;999;Altre spese per contratti di servizio pubblico;25/01/2023;
164;1;0;568,76;568,76;VODAFONE OMNITEL  N. V.;Z133027FFB;SALDO Fatt.n. AP00907186  del 20/01/2023 scissione pagamenti;25/01/2023;1207;9;15;1;Spese correnti;3;Acquisto di beni e servizi;2;Acquisto di servizi;5;Utenze e canoni;1;Telefonia fissa;25/01/2023;
165;1;0;87,84;87,84;VODAFONE OMNITEL  N. V.;Z133027FFB;SALDO Fatt.n. AP00961832  del 20/01/2023 scissione pagamenti;25/01/2023;1207;9;15;1;Spese correnti;3;Acquisto di beni e servizi;2;Acquisto di servizi;5;Utenze e canoni;1;Telefonia fissa;25/01/2023;
166;1;0;86,06;86,06;VODAFONE OMNITEL  N. V.;Z133027FFB;ACCONTO Fatt.n. AP00929704  del 20/01/2023 scissione pagamenti;25/01/2023;1207;9;15;1;Spese correnti;3;Acquisto di beni e servizi;2;Acquisto di servizi;5;Utenze e canoni;1;Telefonia fissa;25/01/2023;
167;1;0;86,06;86,06;VODAFONE OMNITEL  N. V.;Z133027FFB;ACCONTO Fatt.n. AP00929705  del 20/01/2023 scissione pagamenti;25/01/2023;1207;9;15;1;Spese correnti;3;Acquisto di beni e servizi;2;Acquisto di servizi;5;Utenze e canoni;1;Telefonia fissa;25/01/2023;
168;1;0;73,52;73,52;VODAFONE OMNITEL  N. V.;Z133027FFB;SALDO Fatt.n. AP00929705  del 20/01/2023 scissione pagamenti;25/01/2023;4109;2;16;1;Spese correnti;3;Acquisto di beni e servizi;2;Acquisto di servizi;5;Utenze e canoni;1;Telefonia fissa;25/01/2023;
169;1;0;73,52;73,52;VODAFONE OMNITEL  N. V.;Z133027FFB;SALDO Fatt.n. AP00929704  del 20/01/2023 scissione pagamenti;25/01/2023;4311;2;17;1;Spese correnti;3;Acquisto di beni e servizi;2;Acquisto di servizi;5;Utenze e canoni;1;Telefonia fissa;25/01/2023;
178;1;0;187,8;187,8;VACCA GIANCARMINE;Z4B386DE59;SALDO Fatt.n. FPA 6/22  del 31/12/2022;30/01/2023;1206;6;397;1;Spese correnti;3;Acquisto di beni e servizi;1;Acquisto di beni;2;Altri beni di consumo;999;Altri beni e materiali di consumo n.a.c.;30/01/2023;
179;1;0;1.314,22;1.314,22;OMESSO NOMINATIVO NEL RISPETTO DELLA NORMATIVA SULLA PROTEZIONE DATI PERSONALI; ;legge di settore 2023 . Liquidazione sussidi legge 11/85 in favore di un utente mese di novembre e dicembre 2022;30/01/2023;10440;1;287;1;Spese correnti;4;Trasferimenti correnti;2;Trasferimenti correnti a Famiglie;5;Altri trasferimenti a famiglie;999;Altri trasferimenti a famiglie n.a.c.;30/01/2023;
183;1;0;109,23;109,23;A2A ENERGIA; ;ACCONTO Fatt.n. 823000008072  del 27/01/2023 FORNITURA ENERGIA ELETTRICA periodo: 01.12.2022-31.12.2022 POD IT001E99410996 Contatore 000000000000310862 kWh 614;02/02/2023;5210;1;2;1;Spese correnti;3;Acquisto di beni e servizi;2;Acquisto di servizi;5;Utenze e canoni;4;Energia elettrica;02/02/2023;
184;1;0;52,57;52,57;A2A ENERGIA; ;SALDO Fatt.n. 823000009564  del 27/01/2023 FORNITURA ENERGIA ELETTRICA periodo: 01.12.2022-31.12.2022 POD IT001E98289340 Contatore 000000000000054064 kWh 41;02/02/2023;5210;1;2;1;Spese correnti;3;Acquisto di beni e servizi;2;Acquisto di servizi;5;Utenze e canoni;4;Energia elettrica;02/02/2023;
185;1;0;25,51;25,51;A2A ENERGIA; ;SALDO Fatt.n. 823000009563  del 27/01/2023 FORNITURA ENERGIA ELETTRICA periodo: 01.12.2022-31.12.2022 POD IT001E99898431 Contatore 000000000000966489 kWh 30;02/02/2023;5210;1;2;1;Spese correnti;3;Acquisto di beni e servizi;2;Acquisto di servizi;5;Utenze e canoni;4;Energia elettrica;02/02/2023;
186;1;0;168,33;168,33;A2A ENERGIA; ;SALDO Fatt.n. 823000008072  del 27/01/2023 FORNITURA ENERGIA ELETTRICA periodo: 01.12.2022-31.12.2022 POD IT001E99410996 Contatore 000000000000310862 kWh 614;02/02/2023;8214;1;4;1;Spese correnti;3;Acquisto di beni e servizi;2;Acquisto di servizi;5;Utenze e canoni;4;Energia elettrica;02/02/2023;
187;1;0;180;180;OMESSO NOMINATIVO NEL RISPETTO DELLA NORMATIVA SULLA PROTEZIONE DATI PERSONALI; ;Legge 162/98. Piani personalizzati di sostegno. Liquidazione fatture alla Soc. Coop Sociale Laurus. Gestione indiretta. Dicembre 2022;02/02/2023;10446;3;436;1;Spese correnti;4;Trasferimenti correnti;2;Trasferimenti correnti a Famiglie;5;Altri trasferimenti a famiglie;999;Altri trasferimenti a famiglie n.a.c.;02/02/2023;
188;1;0;220;220;OMESSO NOMINATIVO NEL RISPETTO DELLA NORMATIVA SULLA PROTEZIONE DATI PERSONALI; ;Legge 162/98. Piani personalizzati di sostegno. Liquidazione fatture alla Soc. Coop Sociale Laurus. Gestione indiretta. Dicembre 2022;02/02/2023;10446;3;437;1;Spese correnti;4;Trasferimenti correnti;2;Trasferimenti correnti a Famiglie;5;Altri trasferimenti a famiglie;999;Altri trasferimenti a famiglie n.a.c.;02/02/2023;
189;1;0;125;125;OMESSO NOMINATIVO NEL RISPETTO DELLA NORMATIVA SULLA PROTEZIONE DATI PERSONALI; ;Legge 162/98. Piani personalizzati di sostegno. Liquidazione fatture alla Soc. Coop Sociale Laurus. Gestione indiretta. Dicembre 2022;02/02/2023;10446;3;441;1;Spese correnti;4;Trasferimenti correnti;2;Trasferimenti correnti a Famiglie;5;Altri trasferimenti a famiglie;999;Altri trasferimenti a famiglie n.a.c.;02/02/2023;
190;1;0;180;180;OMESSO NOMINATIVO NEL RISPETTO DELLA NORMATIVA SULLA PROTEZIONE DATI PERSONALI; ;Legge 162/98. Piani personalizzati di sostegno. Liquidazione fatture alla Soc. Coop Sociale Laurus. Gestione indiretta. Dicembre 2022;02/02/2023;10446;3;444;1;Spese correnti;4;Trasferimenti correnti;2;Trasferimenti correnti a Famiglie;5;Altri trasferimenti a famiglie;999;Altri trasferimenti a famiglie n.a.c.;02/02/2023;
191;1;0;170;170;OMESSO NOMINATIVO NEL RISPETTO DELLA NORMATIVA SULLA PROTEZIONE DATI PERSONALI; ;Legge 162/98. Piani personalizzati di sostegno. Liquidazione fatture alla Soc. Coop Sociale Laurus. Gestione indiretta. Dicembre 2022;02/02/2023;10446;3;445;1;Spese correnti;4;Trasferimenti correnti;2;Trasferimenti correnti a Famiglie;5;Altri trasferimenti a famiglie;999;Altri trasferimenti a famiglie n.a.c.;02/02/2023;
192;1;0;750;750;OMESSO NOMINATIVO NEL RISPETTO DELLA NORMATIVA SULLA PROTEZIONE DATI PERSONALI; ;Legge 162/98. Piani personalizzati di sostegno. Liquidazione fatture alla Soc. Coop Sociale Laurus. Gestione indiretta. Dicembre 2022;02/02/2023;10446;3;454;1;Spese correnti;4;Trasferimenti correnti;2;Trasferimenti correnti a Famiglie;5;Altri trasferimenti a famiglie;999;Altri trasferimenti a famiglie n.a.c.;02/02/2023;
193;1;0;300;300;OMESSO NOMINATIVO NEL RISPETTO DELLA NORMATIVA SULLA PROTEZIONE DATI PERSONALI; ;Legge 162/98. Piani personalizzati di sostegno. Liquidazione fatture alla Soc. Coop Sociale Laurus. Gestione indiretta. Dicembre 2022;02/02/2023;10446;3;461;1;Spese correnti;4;Trasferimenti correnti;2;Trasferimenti correnti a Famiglie;5;Altri trasferimenti a famiglie;999;Altri trasferimenti a famiglie n.a.c.;02/02/2023;
194;1;0;335;335;OMESSO NOMINATIVO NEL RISPETTO DELLA NORMATIVA SULLA PROTEZIONE DATI PERSONALI; ;Legge 162/98. Piani personalizzati di sostegno. Liquidazione fatture alla Soc. Coop Sociale Laurus. Gestione indiretta. Dicembre 2022;02/02/2023;10446;3;466;1;Spese correnti;4;Trasferimenti correnti;2;Trasferimenti correnti a Famiglie;5;Altri trasferimenti a famiglie;999;Altri trasferimenti a famiglie n.a.c.;02/02/2023;
195;1;0;300;300;OMESSO NOMINATIVO NEL RISPETTO DELLA NORMATIVA SULLA PROTEZIONE DATI PERSONALI; ;Legge 162/98. Piani personalizzati di sostegno. Liquidazione fatture alla Soc. Coop Sociale Laurus. Gestione indiretta. Dicembre 2022;02/02/2023;10446;3;467;1;Spese correnti;4;Trasferimenti correnti;2;Trasferimenti correnti a Famiglie;5;Altri trasferimenti a famiglie;999;Altri trasferimenti a famiglie n.a.c.;02/02/2023;
196;1;0;312,5;312,5;OMESSO NOMINATIVO NEL RISPETTO DELLA NORMATIVA SULLA PROTEZIONE DATI PERSONALI; ;Legge 162/98. Piani personalizzati di sostegno. Liquidazione fatture alla Soc. Coop Sociale Laurus. Gestione indiretta. Dicembre 2022;02/02/2023;10446;3;472;1;Spese correnti;4;Trasferimenti correnti;2;Trasferimenti correnti a Famiglie;5;Altri trasferimenti a famiglie;999;Altri trasferimenti a famiglie n.a.c.;02/02/2023;
197;1;0;2.235,76;2.235,76;OMESSO NOMINATIVO NEL RISPETTO DELLA NORMATIVA SULLA PROTEZIONE DATI PERSONALI; ;Legge 9 dicembre 1998 n. 431 art. 11 - Fondo per il sostegno allaccesso abitazioni in locazione. Annualita 2022. Liquidazione 9 beneficiari.;03/02/2023;10447;1;520;1;Spese correnti;4;Trasferimenti correnti;2;Trasferimenti correnti a Famiglie;5;Altri trasferimenti a famiglie;999;Altri trasferimenti a famiglie n.a.c.;03/02/2023;
198;1;0;2.546,00;2.546,00;OMESSO NOMINATIVO NEL RISPETTO DELLA NORMATIVA SULLA PROTEZIONE DATI PERSONALI; ;Legge 9 dicembre 1998 n. 431 art. 11 - Fondo per il sostegno allaccesso abitazioni in locazione. Annualita 2022. Liquidazione 9 beneficiari.;03/02/2023;10447;1;521;1;Spese correnti;4;Trasferimenti correnti;2;Trasferimenti correnti a Famiglie;5;Altri trasferimenti a famiglie;999;Altri trasferimenti a famiglie n.a.c.;03/02/2023;
199;1;0;2.546,00;2.546,00;OMESSO NOMINATIVO NEL RISPETTO DELLA NORMATIVA SULLA PROTEZIONE DATI PERSONALI; ;Legge 9 dicembre 1998 n. 431 art. 11 - Fondo per il sostegno allaccesso abitazioni in locazione. Annualita 2022. Liquidazione 9 beneficiari.;03/02/2023;10447;1;522;1;Spese correnti;4;Trasferimenti correnti;2;Trasferimenti correnti a Famiglie;5;Altri trasferimenti a famiglie;999;Altri trasferimenti a famiglie n.a.c.;03/02/2023;
201;1;0;2.726,04;2.726,04;OMESSO NOMINATIVO NEL RISPETTO DELLA NORMATIVA SULLA PROTEZIONE DATI PERSONALI; ;Legge 9 dicembre 1998 n. 431 art. 11 - Fondo per il sostegno allaccesso abitazioni in locazione. Annualita 2022. Liquidazione 9 beneficiari.;03/02/2023;10447;1;524;1;Spese correnti;4;Trasferimenti correnti;2;Trasferimenti correnti a Famiglie;5;Altri trasferimenti a famiglie;999;Altri trasferimenti a famiglie n.a.c.;03/02/2023;
202;1;0;2.419,00;2.419,00;OMESSO NOMINATIVO NEL RISPETTO DELLA NORMATIVA SULLA PROTEZIONE DATI PERSONALI; ;Legge 9 dicembre 1998 n. 431 art. 11 - Fondo per il sostegno allaccesso abitazioni in locazione. Annualita 2022. Liquidazione 9 beneficiari.;03/02/2023;10447;1;525;1;Spese correnti;4;Trasferimenti correnti;2;Trasferimenti correnti a Famiglie;5;Altri trasferimenti a famiglie;999;Altri trasferimenti a famiglie n.a.c.;03/02/2023;
203;1;0;1.400,00;1.400,00;OMESSO NOMINATIVO NEL RISPETTO DELLA NORMATIVA SULLA PROTEZIONE DATI PERSONALI; ;Legge 9 dicembre 1998 n. 431 art. 11 - Fondo per il sostegno allaccesso abitazioni in locazione. Annualita 2022. Liquidazione 9 beneficiari.;03/02/2023;10447;1;526;1;Spese correnti;4;Trasferimenti correnti;2;Trasferimenti correnti a Famiglie;5;Altri trasferimenti a famiglie;999;Altri trasferimenti a famiglie n.a.c.;03/02/2023;
204;1;0;600;600;OMESSO NOMINATIVO NEL RISPETTO DELLA NORMATIVA SULLA PROTEZIONE DATI PERSONALI; ;Legge 9 dicembre 1998 n. 431 art. 11 - Fondo per il sostegno allaccesso abitazioni in locazione. Annualita 2022. Liquidazione 9 beneficiari.;03/02/2023;10447;1;527;1;Spese correnti;4;Trasferimenti correnti;2;Trasferimenti correnti a Famiglie;5;Altri trasferimenti a famiglie;999;Altri trasferimenti a famiglie n.a.c.;03/02/2023;
205;1;0;2.758,00;2.758,00;OMESSO NOMINATIVO NEL RISPETTO DELLA NORMATIVA SULLA PROTEZIONE DATI PERSONALI; ;Legge 9 dicembre 1998 n. 431 art. 11 - Fondo per il sostegno allaccesso abitazioni in locazione. Annualita 2022. Liquidazione 9 beneficiari.;03/02/2023;10447;1;528;1;Spese correnti;4;Trasferimenti correnti;2;Trasferimenti correnti a Famiglie;5;Altri trasferimenti a famiglie;999;Altri trasferimenti a famiglie n.a.c.;03/02/2023;
206;1;0;148,81;148,81;POSTE ITALIANE  S.P.A.;Z772D2A195;SALDO Fatt.n. 1023024502  del 01/02/2023 32007847-001;03/02/2023;1207;8;250;1;Spese correnti;3;Acquisto di beni e servizi;2;Acquisto di servizi;16;Servizi amministrativi;2;Spese postali;03/02/2023;
207;1;0;3.050,00;3.050,00;BARRACO GIAMPIERO;ZDB389B66E;SALDO Fatt.n. 8/E  del 06/02/2023;08/02/2023;21412;22;482;2;Spese in conto capitale;2;Investimenti fissi lordi e acquisto di terreni;1;Beni materiali;9;Beni immobili;999;Beni immobili n.a.c.;08/02/2023;
208;1;0;2.097,00;2.097,00;OMESSO NOMINATIVO NEL RISPETTO DELLA NORMATIVA SULLA PROTEZIONE DATI PERSONALI; ;Legge 9 dicembre 1998 n. 431 art. 11 - Fondo per il sostegno allaccesso abitazioni in locazione. Annualita 2022. Liquidazione;09/02/2023;10447;1;523;1;Spese correnti;4;Trasferimenti correnti;2;Trasferimenti correnti a Famiglie;5;Altri trasferimenti a famiglie;999;Altri trasferimenti a famiglie n.a.c.;09/02/2023;
209;1;0;2.608,20;2.608,20;OMESSO NOMINATIVO NEL RISPETTO DELLA NORMATIVA SULLA PROTEZIONE DATI PERSONALI; ;STIPENDI MESE DI: FEBBRAIO 23;09/02/2023;1106;1;39;1;Spese correnti;3;Acquisto di beni e servizi;2;Acquisto di servizi;1;Organi e incarichi istituzionali dell'amministrazione;1;Organi istituzionali dell'amministrazione - Indennità;09/02/2023;
212;1;0;15.000,00;15.000,00;OMESSO NOMINATIVO NEL RISPETTO DELLA NORMATIVA SULLA PROTEZIONE DATI PERSONALI; ;Liquidazione contributo per il contrasto dello spopolamento nei comuni fino a 3000 abitanti-  lr 9marzo 2022 art 13;13/02/2023;20618;1;510;2;Spese in conto capitale;3;Contributi agli investimenti;2;Contributi agli investimenti a Famiglie;1;Contributi agli investimenti a Famiglie;1;Contributi agli investimenti a Famiglie;13/02/2023;
213;1;0;4.288,79;4.288,79;SVILUPPO SERVIZI ITALIA SOC.COOP. ONLUS;9501414EDC;SALDO Fatt.n. 5FPA  del 31/01/2023;13/02/2023;10418;23;499;1;Spese correnti;3;Acquisto di beni e servizi;2;Acquisto di servizi;99;Altri servizi;999;Altri servizi diversi n.a.c.;13/02/2023;
214;1;0;6,56;6,56;POSTE ITALIANE  S.P.A.;Z772D2A195;SALDO Fatt.n. 1023025020  del 01/02/2023 32007847-001;14/02/2023;1207;8;250;1;Spese correnti;3;Acquisto di beni e servizi;2;Acquisto di servizi;16;Servizi amministrativi;2;Spese postali;14/02/2023;
241;1;0;3.599,00;3.599,00;I.M.E.CO. IMPIANTI SRL;Z2838B706B;SALDO Fatt.n. 36/PA  del 31/01/2023;14/02/2023;5211;1;423;1;Spese correnti;3;Acquisto di beni e servizi;2;Acquisto di servizi;7;Utilizzo di beni di terzi;8;Noleggi di impianti e macchinari;14/02/2023;
242;1;0;932,75;932,75;ENEL ENERGIA S.P.A.; ;SALDO Fatt.n. 004300495353  del 08/02/2023;14/02/2023;1206;13;4;1;Spese correnti;3;Acquisto di beni e servizi;2;Acquisto di servizi;5;Utenze e canoni;4;Energia elettrica;14/02/2023;
243;1;0;339,84;339,84;ENEL ENERGIA S.P.A.; ;SALDO Fatt.n. 004300495352  del 08/02/2023;14/02/2023;4109;9;5;1;Spese correnti;3;Acquisto di beni e servizi;2;Acquisto di servizi;5;Utenze e canoni;4;Energia elettrica;14/02/2023;
244;1;0;173,03;173,03;ENEL ENERGIA S.P.A.; ;SALDO Fatt.n. 004300495355  del 08/02/2023;14/02/2023;4210;2;6;1;Spese correnti;3;Acquisto di beni e servizi;2;Acquisto di servizi;5;Utenze e canoni;4;Energia elettrica;14/02/2023;
245;1;0;525,45;525,45;ENEL ENERGIA S.P.A.; ;SALDO Fatt.n. 004303934507  del 10/02/2023;14/02/2023;4311;3;7;1;Spese correnti;3;Acquisto di beni e servizi;2;Acquisto di servizi;5;Utenze e canoni;4;Energia elettrica;14/02/2023;
246;1;0;89,08;89,08;ENEL ENERGIA S.P.A.; ;SALDO Fatt.n. 004300495354  del 08/02/2023;14/02/2023;5110;4;8;1;Spese correnti;3;Acquisto di beni e servizi;2;Acquisto di servizi;5;Utenze e canoni;4;Energia elettrica;14/02/2023;
247;1;0;211,8;211,8;ENEL ENERGIA S.P.A.; ;SALDO Fatt.n. 004300495357  del 08/02/2023;14/02/2023;6211;8;14;1;Spese correnti;3;Acquisto di beni e servizi;2;Acquisto di servizi;5;Utenze e canoni;4;Energia elettrica;14/02/2023;
248;1;0;2.466,46;2.466,46;ENEL ENERGIA S.P.A.; ;SALDO Fatt.n. 004300495356  del 08/02/2023;14/02/2023;8214;1;9;1;Spese correnti;3;Acquisto di beni e servizi;2;Acquisto di servizi;5;Utenze e canoni;4;Energia elettrica;14/02/2023;
249;1;0;1.075,92;1.075,92;ENEL ENERGIA S.P.A.; ;SALDO Fatt.n. 004302827496  del 09/02/2023;14/02/2023;8214;1;9;1;Spese correnti;3;Acquisto di beni e servizi;2;Acquisto di servizi;5;Utenze e canoni;4;Energia elettrica;14/02/2023;
250;1;0;2.379,20;2.379,20;ENEL ENERGIA S.P.A.; ;SALDO Fatt.n. 004302827497  del 09/02/2023;14/02/2023;8214;1;9;1;Spese correnti;3;Acquisto di beni e servizi;2;Acquisto di servizi;5;Utenze e canoni;4;Energia elettrica;14/02/2023;
251;1;0;84,2;84,2;ENEL ENERGIA S.P.A.; ;SALDO Fatt.n. 004300495350  del 08/02/2023;14/02/2023;8214;1;9;1;Spese correnti;3;Acquisto di beni e servizi;2;Acquisto di servizi;5;Utenze e canoni;4;Energia elettrica;14/02/2023;
252;1;0;254,42;254,42;ENEL ENERGIA S.P.A.; ;SALDO Fatt.n. 004302827495  del 09/02/2023;14/02/2023;8214;1;9;1;Spese correnti;3;Acquisto di beni e servizi;2;Acquisto di servizi;5;Utenze e canoni;4;Energia elettrica;14/02/2023;
253;1;0;90,11;90,11;ENEL ENERGIA S.P.A.; ;SALDO Fatt.n. 004300495351  del 08/02/2023;14/02/2023;10519;1;11;1;Spese correnti;3;Acquisto di beni e servizi;2;Acquisto di servizi;5;Utenze e canoni;4;Energia elettrica;14/02/2023;
254;1;0;94,56;94,56;ENEL ENERGIA S.P.A.; ;SALDO Fatt.n. 004304900364  del 11/02/2023;14/02/2023;11722;1;12;1;Spese correnti;3;Acquisto di beni e servizi;2;Acquisto di servizi;5;Utenze e canoni;4;Energia elettrica;14/02/2023;
257;1;0;3.906,10;3.906,10;I.M.E.CO. IMPIANTI SRL;ZAD38EAC7C;ACCONTO Fatt.n. 45/PA  del 13/02/2023;17/02/2023;28210;2;480;2;Spese in conto capitale;2;Investimenti fissi lordi e acquisto di terreni;1;Beni materiali;4;Impianti e macchinari;2;Impianti;17/02/2023;
258;1;0;1.766,90;1.766,90;I.M.E.CO. IMPIANTI SRL;ZAD38EAC7C;SALDO Fatt.n. 45/PA  del 13/02/2023;17/02/2023;21412;22;481;2;Spese in conto capitale;2;Investimenti fissi lordi e acquisto di terreni;1;Beni materiali;9;Beni immobili;999;Beni immobili n.a.c.;17/02/2023;
259;1;0;313,81;313,81;AGENZIA DELLE ENTRATE RISCOSSIONE; ;LIQUIDAZIONE QUOTA ANNUALE ANCI  avviso 012830l023000004053;17/02/2023;1228;1;120;1;Spese correnti;3;Acquisto di beni e servizi;2;Acquisto di servizi;99;Altri servizi;3;Quote di associazioni;17/02/2023;
260;1;0;145,16;145,16;ANCI SARDEGNA; ;ADDIZIONALE REGIONALE ANCI SARDEGNA anno 2023;17/02/2023;1228;1;121;1;Spese correnti;3;Acquisto di beni e servizi;2;Acquisto di servizi;99;Altri servizi;3;Quote di associazioni;17/02/2023;
261;1;0;830,57;830,57;OMESSO NOMINATIVO NEL RISPETTO DELLA NORMATIVA SULLA PROTEZIONE DATI PERSONALI; ;Mi prendo cura. Saldo Anno 2022. Liquidazione di un beneficiario;17/02/2023;10418;33;265;1;Spese correnti;4;Trasferimenti correnti;2;Trasferimenti correnti a Famiglie;2;Interventi assistenziali;999;Altri assegni e sussidi assistenziali;17/02/2023;
262;1;0;1.037,00;1.037,00;COMUNE DI SANLURI- SERVIZIO TESORERIA; ;LIQUIDAZIONE COMPETENZE PER IL FUNZIONAMENTO I-II-III SOTTOCOMMISSIONE ELETTORALE CIRCONDARIALE ANNO 2022 -;17/02/2023;10439;1;516;1;Spese correnti;4;Trasferimenti correnti;1;Trasferimenti correnti a Amministrazioni Pubbliche;2;Trasferimenti correnti a Amministrazioni Locali;3;Trasferimenti correnti a Comuni;17/02/2023;
263;1;0;7,77;7,77;COMUNE DI SANLURI- SERVIZIO TESORERIA; ;LIQUIDAZIONE COMPETENZE PER IL FUNZIONAMENTO I-II-III SOTTOCOMMISSIONE ELETTORALE CIRCONDARIALE ANNO 2022 -;17/02/2023;10439;1;123;1;Spese correnti;4;Trasferimenti correnti;1;Trasferimenti correnti a Amministrazioni Pubbliche;2;Trasferimenti correnti a Amministrazioni Locali;3;Trasferimenti correnti a Comuni;17/02/2023;
272;1;0;4.166,00;4.166,00;"LA GHIANDA  A.R.L. COOPERATIVA SOCIALE ""B""";Z1B3965B2C;ACCONTO Fatt.n. 1/24  del 31/01/2023 SERVIZIO MESE DI   GENNAIO 2023;21/02/2023;10216;1;28;1;Spese correnti;3;Acquisto di beni e servizi;2;Acquisto di servizi;15;Contratti di servizio pubblico;999;Altre spese per contratti di servizio pubblico;21/02/2023;
273;1;0;1.470,40;1.470,40;"LA GHIANDA  A.R.L. COOPERATIVA SOCIALE ""B""";Z1B3965B2C;SALDO Fatt.n. 1/24  del 31/01/2023 SERVIZIO MESE DI   GENNAIO 2023;21/02/2023;10216;1;124;1;Spese correnti;3;Acquisto di beni e servizi;2;Acquisto di servizi;15;Contratti di servizio pubblico;999;Altre spese per contratti di servizio pubblico;21/02/2023;
274;1;0;229,16;229,16;FATICONI Spa;Z6B37FD216;ACCONTO Fatt.n. 000240PA  del 13/02/2023;21/02/2023;1207;13;373;1;Spese correnti;3;Acquisto di beni e servizi;2;Acquisto di servizi;7;Utilizzo di beni di terzi;8;Noleggi di impianti e macchinari;21/02/2023;
275;1;0;724,68;724,68;FATICONI Spa;Z6B37FD216;SALDO Fatt.n. 000240PA  del 13/02/2023;21/02/2023;1207;13;373;1;Spese correnti;3;Acquisto di beni e servizi;2;Acquisto di servizi;7;Utilizzo di beni di terzi;8;Noleggi di impianti e macchinari;21/02/2023;
276;1;0;395,83;395,83;OMESSO NOMINATIVO NEL RISPETTO DELLA NORMATIVA SULLA PROTEZIONE DATI PERSONALI; ;Legge 162/98. Anno 2023. Liquidazione Buste Paga Gennaio a vari beneficiari;21/02/2023;10446;3;60;1;Spese correnti;4;Trasferimenti correnti;2;Trasferimenti correnti a Famiglie;5;Altri trasferimenti a famiglie;999;Altri trasferimenti a famiglie n.a.c.;21/02/2023;
277;1;0;215,05;215,05;OMESSO NOMINATIVO NEL RISPETTO DELLA NORMATIVA SULLA PROTEZIONE DATI PERSONALI; ;Legge 162/98. Anno 2023. Liquidazione Buste Paga Gennaio a vari beneficiari;21/02/2023;10446;3;61;1;Spese correnti;4;Trasferimenti correnti;2;Trasferimenti correnti a Famiglie;5;Altri trasferimenti a famiglie;999;Altri trasferimenti a famiglie n.a.c.;21/02/2023;
278;1;0;357,98;357,98;OMESSO NOMINATIVO NEL RISPETTO DELLA NORMATIVA SULLA PROTEZIONE DATI PERSONALI; ;Legge 162/98. Anno 2023. Liquidazione Buste Paga Gennaio a vari beneficiari;21/02/2023;10446;3;62;1;Spese correnti;4;Trasferimenti correnti;2;Trasferimenti correnti a Famiglie;5;Altri trasferimenti a famiglie;999;Altri trasferimenti a famiglie n.a.c.;21/02/2023;
279;1;0;158,72;158,72;OMESSO NOMINATIVO NEL RISPETTO DELLA NORMATIVA SULLA PROTEZIONE DATI PERSONALI; ;Legge 162/98. Anno 2023. Liquidazione Buste Paga Gennaio a vari beneficiari;21/02/2023;10446;3;63;1;Spese correnti;4;Trasferimenti correnti;2;Trasferimenti correnti a Famiglie;5;Altri trasferimenti a famiglie;999;Altri trasferimenti a famiglie n.a.c.;21/02/2023;
280;1;0;181,87;181,87;OMESSO NOMINATIVO NEL RISPETTO DELLA NORMATIVA SULLA PROTEZIONE DATI PERSONALI; ;Legge 162/98. Anno 2023. Liquidazione Buste Paga Gennaio a vari beneficiari;21/02/2023;10446;3;64;1;Spese correnti;4;Trasferimenti correnti;2;Trasferimenti correnti a Famiglie;5;Altri trasferimenti a famiglie;999;Altri trasferimenti a famiglie n.a.c.;21/02/2023;
281;1;0;323,81;323,81;OMESSO NOMINATIVO NEL RISPETTO DELLA NORMATIVA SULLA PROTEZIONE DATI PERSONALI; ;Legge 162/98. Anno 2023. Liquidazione Buste Paga Gennaio a vari beneficiari;21/02/2023;10446;3;65;1;Spese correnti;4;Trasferimenti correnti;2;Trasferimenti correnti a Famiglie;5;Altri trasferimenti a famiglie;999;Altri trasferimenti a famiglie n.a.c.;21/02/2023;
282;1;0;215,3;215,3;OMESSO NOMINATIVO NEL RISPETTO DELLA NORMATIVA SULLA PROTEZIONE DATI PERSONALI; ;Legge 162/98. Anno 2023. Liquidazione Buste Paga Gennaio a vari beneficiari;21/02/2023;10446;3;68;1;Spese correnti;4;Trasferimenti correnti;2;Trasferimenti correnti a Famiglie;5;Altri trasferimenti a famiglie;999;Altri trasferimenti a famiglie n.a.c.;21/02/2023;
283;1;0;318,75;318,75;OMESSO NOMINATIVO NEL RISPETTO DELLA NORMATIVA SULLA PROTEZIONE DATI PERSONALI; ;Legge 162/98. Anno 2023. Liquidazione Buste Paga Gennaio a vari beneficiari;21/02/2023;10446;3;69;1;Spese correnti;4;Trasferimenti correnti;2;Trasferimenti correnti a Famiglie;5;Altri trasferimenti a famiglie;999;Altri trasferimenti a famiglie n.a.c.;21/02/2023;
284;1;0;1.010,00;1.010,00;OMESSO NOMINATIVO NEL RISPETTO DELLA NORMATIVA SULLA PROTEZIONE DATI PERSONALI; ;Legge 162/98. Anno 2023. Liquidazione Buste Paga Gennaio a vari beneficiari;21/02/2023;10446;3;70;1;Spese correnti;4;Trasferimenti correnti;2;Trasferimenti correnti a Famiglie;5;Altri trasferimenti a famiglie;999;Altri trasferimenti a famiglie n.a.c.;21/02/2023;
285;1;0;625,65;625,65;OMESSO NOMINATIVO NEL RISPETTO DELLA NORMATIVA SULLA PROTEZIONE DATI PERSONALI; ;Legge 162/98. Anno 2023. Liquidazione Buste Paga Gennaio a vari beneficiari;21/02/2023;10446;3;72;1;Spese correnti;4;Trasferimenti correnti;2;Trasferimenti correnti a Famiglie;5;Altri trasferimenti a famiglie;999;Altri trasferimenti a famiglie n.a.c.;21/02/2023;
286;1;0;151,56;151,56;OMESSO NOMINATIVO NEL RISPETTO DELLA NORMATIVA SULLA PROTEZIONE DATI PERSONALI; ;Legge 162/98. Anno 2023. Liquidazione Buste Paga Gennaio a vari beneficiari;21/02/2023;10446;3;73;1;Spese correnti;4;Trasferimenti correnti;2;Trasferimenti correnti a Famiglie;5;Altri trasferimenti a famiglie;999;Altri trasferimenti a famiglie n.a.c.;21/02/2023;
287;1;0;189,62;189,62;OMESSO NOMINATIVO NEL RISPETTO DELLA NORMATIVA SULLA PROTEZIONE DATI PERSONALI; ;Legge 162/98. Anno 2023. Liquidazione Buste Paga Gennaio a vari beneficiari;21/02/2023;10446;3;76;1;Spese correnti;4;Trasferimenti correnti;2;Trasferimenti correnti a Famiglie;5;Altri trasferimenti a famiglie;999;Altri trasferimenti a famiglie n.a.c.;21/02/2023;
288;1;0;290,41;290,41;OMESSO NOMINATIVO NEL RISPETTO DELLA NORMATIVA SULLA PROTEZIONE DATI PERSONALI; ;Legge 162/98. Anno 2023. Liquidazione Buste Paga Gennaio a vari beneficiari;21/02/2023;10446;3;77;1;Spese correnti;4;Trasferimenti correnti;2;Trasferimenti correnti a Famiglie;5;Altri trasferimenti a famiglie;999;Altri trasferimenti a famiglie n.a.c.;21/02/2023;
289;1;0;166,66;166,66;OMESSO NOMINATIVO NEL RISPETTO DELLA NORMATIVA SULLA PROTEZIONE DATI PERSONALI; ;Legge 162/98. Anno 2023. Liquidazione Buste Paga Gennaio a vari beneficiari;21/02/2023;10446;3;78;1;Spese correnti;4;Trasferimenti correnti;2;Trasferimenti correnti a Famiglie;5;Altri trasferimenti a famiglie;999;Altri trasferimenti a famiglie n.a.c.;21/02/2023;
290;1;0;248,59;248,59;OMESSO NOMINATIVO NEL RISPETTO DELLA NORMATIVA SULLA PROTEZIONE DATI PERSONALI; ;Legge 162/98. Anno 2023. Liquidazione Buste Paga Gennaio a vari beneficiari;21/02/2023;10446;3;79;1;Spese correnti;4;Trasferimenti correnti;2;Trasferimenti correnti a Famiglie;5;Altri trasferimenti a famiglie;999;Altri trasferimenti a famiglie n.a.c.;21/02/2023;
291;1;0;587,5;587,5;OMESSO NOMINATIVO NEL RISPETTO DELLA NORMATIVA SULLA PROTEZIONE DATI PERSONALI; ;Legge 162/98. Anno 2023. Liquidazione Buste Paga Gennaio a vari beneficiari;21/02/2023;10446;3;82;1;Spese correnti;4;Trasferimenti correnti;2;Trasferimenti correnti a Famiglie;5;Altri trasferimenti a famiglie;999;Altri trasferimenti a famiglie n.a.c.;21/02/2023;
292;1;0;692,32;692,32;OMESSO NOMINATIVO NEL RISPETTO DELLA NORMATIVA SULLA PROTEZIONE DATI PERSONALI; ;Legge 162/98. Anno 2023. Liquidazione Buste Paga Gennaio a vari beneficiari;21/02/2023;10446;3;85;1;Spese correnti;4;Trasferimenti correnti;2;Trasferimenti correnti a Famiglie;5;Altri trasferimenti a famiglie;999;Altri trasferimenti a famiglie n.a.c.;21/02/2023;
293;1;0;378,03;378,03;OMESSO NOMINATIVO NEL RISPETTO DELLA NORMATIVA SULLA PROTEZIONE DATI PERSONALI; ;Legge 162/98. Anno 2023. Liquidazione Buste Paga Gennaio a vari beneficiari;21/02/2023;10446;3;87;1;Spese correnti;4;Trasferimenti correnti;2;Trasferimenti correnti a Famiglie;5;Altri trasferimenti a famiglie;999;Altri trasferimenti a famiglie n.a.c.;21/02/2023;
294;1;0;213,27;213,27;OMESSO NOMINATIVO NEL RISPETTO DELLA NORMATIVA SULLA PROTEZIONE DATI PERSONALI; ;Legge 162/98. Anno 2023. Liquidazione Buste Paga Gennaio a vari beneficiari;21/02/2023;10446;3;88;1;Spese correnti;4;Trasferimenti correnti;2;Trasferimenti correnti a Famiglie;5;Altri trasferimenti a famiglie;999;Altri trasferimenti a famiglie n.a.c.;21/02/2023;
295;1;0;106,99;106,99;OMESSO NOMINATIVO NEL RISPETTO DELLA NORMATIVA SULLA PROTEZIONE DATI PERSONALI; ;Legge 162/98. Anno 2023. Liquidazione Buste Paga Gennaio a vari beneficiari;21/02/2023;10446;3;89;1;Spese correnti;4;Trasferimenti correnti;2;Trasferimenti correnti a Famiglie;5;Altri trasferimenti a famiglie;999;Altri trasferimenti a famiglie n.a.c.;21/02/2023;
296;1;0;446,85;446,85;OMESSO NOMINATIVO NEL RISPETTO DELLA NORMATIVA SULLA PROTEZIONE DATI PERSONALI; ;Legge 162/98. Anno 2023. Liquidazione Buste Paga Gennaio a vari beneficiari;21/02/2023;10446;3;92;1;Spese correnti;4;Trasferimenti correnti;2;Trasferimenti correnti a Famiglie;5;Altri trasferimenti a famiglie;999;Altri trasferimenti a famiglie n.a.c.;21/02/2023;
297;1;0;245;245;OMESSO NOMINATIVO NEL RISPETTO DELLA NORMATIVA SULLA PROTEZIONE DATI PERSONALI; ;Legge 162/98. Anno 2023. Liquidazione Buste Paga Gennaio a vari beneficiari;21/02/2023;10446;3;93;1;Spese correnti;4;Trasferimenti correnti;2;Trasferimenti correnti a Famiglie;5;Altri trasferimenti a famiglie;999;Altri trasferimenti a famiglie n.a.c.;21/02/2023;
298;1;0;284,37;284,37;OMESSO NOMINATIVO NEL RISPETTO DELLA NORMATIVA SULLA PROTEZIONE DATI PERSONALI; ;Legge 162/98. Anno 2023. Liquidazione Buste Paga Gennaio a vari beneficiari;21/02/2023;10446;3;94;1;Spese correnti;4;Trasferimenti correnti;2;Trasferimenti correnti a Famiglie;5;Altri trasferimenti a famiglie;999;Altri trasferimenti a famiglie n.a.c.;21/02/2023;
299;1;0;341,25;341,25;OMESSO NOMINATIVO NEL RISPETTO DELLA NORMATIVA SULLA PROTEZIONE DATI PERSONALI; ;Legge 162/98. Anno 2023. Liquidazione Buste Paga Gennaio a vari beneficiari;21/02/2023;10446;3;95;1;Spese correnti;4;Trasferimenti correnti;2;Trasferimenti correnti a Famiglie;5;Altri trasferimenti a famiglie;999;Altri trasferimenti a famiglie n.a.c.;21/02/2023;
300;1;0;354,38;354,38;OMESSO NOMINATIVO NEL RISPETTO DELLA NORMATIVA SULLA PROTEZIONE DATI PERSONALI; ;Legge 162/98. Anno 2023. Liquidazione Buste Paga Gennaio a vari beneficiari;21/02/2023;10446;3;99;1;Spese correnti;4;Trasferimenti correnti;2;Trasferimenti correnti a Famiglie;5;Altri trasferimenti a famiglie;999;Altri trasferimenti a famiglie n.a.c.;21/02/2023;
301;1;0;80,73;80,73;OMESSO NOMINATIVO NEL RISPETTO DELLA NORMATIVA SULLA PROTEZIONE DATI PERSONALI; ;Legge 162/98. Anno 2023. Liquidazione Buste Paga Gennaio a vari beneficiari;21/02/2023;10446;3;103;1;Spese correnti;4;Trasferimenti correnti;2;Trasferimenti correnti a Famiglie;5;Altri trasferimenti a famiglie;999;Altri trasferimenti a famiglie n.a.c.;21/02/2023;
302;1;0;187,5;187,5;OMESSO NOMINATIVO NEL RISPETTO DELLA NORMATIVA SULLA PROTEZIONE DATI PERSONALI; ;Legge 162/98. Anno 2023. Liquidazione Buste Paga Gennaio a vari beneficiari;21/02/2023;10446;3;104;1;Spese correnti;4;Trasferimenti correnti;2;Trasferimenti correnti a Famiglie;5;Altri trasferimenti a famiglie;999;Altri trasferimenti a famiglie n.a.c.;21/02/2023;
303;1;0;312,5;312,5;OMESSO NOMINATIVO NEL RISPETTO DELLA NORMATIVA SULLA PROTEZIONE DATI PERSONALI; ;Legge 162/98. Anno 2023. Liquidazione Buste Paga Gennaio a vari beneficiari;21/02/2023;10446;3;105;1;Spese correnti;4;Trasferimenti correnti;2;Trasferimenti correnti a Famiglie;5;Altri trasferimenti a famiglie;999;Altri trasferimenti a famiglie n.a.c.;21/02/2023;
304;1;0;187,5;187,5;OMESSO NOMINATIVO NEL RISPETTO DELLA NORMATIVA SULLA PROTEZIONE DATI PERSONALI; ;Legge 162/98. Anno 2023. Liquidazione Buste Paga Gennaio a vari beneficiari;21/02/2023;10446;3;106;1;Spese correnti;4;Trasferimenti correnti;2;Trasferimenti correnti a Famiglie;5;Altri trasferimenti a famiglie;999;Altri trasferimenti a famiglie n.a.c.;21/02/2023;
305;1;0;173,99;173,99;OMESSO NOMINATIVO NEL RISPETTO DELLA NORMATIVA SULLA PROTEZIONE DATI PERSONALI; ;Legge 162/98. Anno 2023. Liquidazione Buste Paga Gennaio a vari beneficiari;21/02/2023;10446;3;107;1;Spese correnti;4;Trasferimenti correnti;2;Trasferimenti correnti a Famiglie;5;Altri trasferimenti a famiglie;999;Altri trasferimenti a famiglie n.a.c.;21/02/2023;
306;1;0;146,88;146,88;OMESSO NOMINATIVO NEL RISPETTO DELLA NORMATIVA SULLA PROTEZIONE DATI PERSONALI; ;Legge 162/98. Anno 2023. Liquidazione Buste Paga Gennaio a vari beneficiari;21/02/2023;10446;3;108;1;Spese correnti;4;Trasferimenti correnti;2;Trasferimenti correnti a Famiglie;5;Altri trasferimenti a famiglie;999;Altri trasferimenti a famiglie n.a.c.;21/02/2023;
307;1;0;200;200;OMESSO NOMINATIVO NEL RISPETTO DELLA NORMATIVA SULLA PROTEZIONE DATI PERSONALI; ;Liquidazione missioni agli amministratori, spese sostenute nellesercizio delle loro funzioni anno 2022.;21/02/2023;1106;4;508;1;Spese correnti;3;Acquisto di beni e servizi;2;Acquisto di servizi;1;Organi e incarichi istituzionali dell'amministrazione;2;Organi istituzionali dell'amministrazione - Rimborsi;21/02/2023;
308;1;0;200;200;OMESSO NOMINATIVO NEL RISPETTO DELLA NORMATIVA SULLA PROTEZIONE DATI PERSONALI; ;Liquidazione missioni agli amministratori, spese sostenute nellesercizio delle loro funzioni anno 2022.;21/02/2023;1106;4;508;1;Spese correnti;3;Acquisto di beni e servizi;2;Acquisto di servizi;1;Organi e incarichi istituzionali dell'amministrazione;2;Organi istituzionali dell'amministrazione - Rimborsi;21/02/2023;
309;1;0;100;100;OMESSO NOMINATIVO NEL RISPETTO DELLA NORMATIVA SULLA PROTEZIONE DATI PERSONALI; ;Liquidazione missioni agli amministratori, spese sostenute nellesercizio delle loro funzioni anno 2022.;21/02/2023;1106;4;508;1;Spese correnti;3;Acquisto di beni e servizi;2;Acquisto di servizi;1;Organi e incarichi istituzionali dell'amministrazione;2;Organi istituzionali dell'amministrazione - Rimborsi;21/02/2023;
310;1;0;100;100;OMESSO NOMINATIVO NEL RISPETTO DELLA NORMATIVA SULLA PROTEZIONE DATI PERSONALI; ;Liquidazione missioni agli amministratori, spese sostenute nellesercizio delle loro funzioni anno 2022.;21/02/2023;1106;4;508;1;Spese correnti;3;Acquisto di beni e servizi;2;Acquisto di servizi;1;Organi e incarichi istituzionali dell'amministrazione;2;Organi istituzionali dell'amministrazione - Rimborsi;21/02/2023;
311;1;0;10;10;OMESSO NOMINATIVO NEL RISPETTO DELLA NORMATIVA SULLA PROTEZIONE DATI PERSONALI; ;Liquidazione missioni agli amministratori, spese sostenute nellesercizio delle loro funzioni anno 2022.;21/02/2023;1106;9;422;1;Spese correnti;3;Acquisto di beni e servizi;2;Acquisto di servizi;1;Organi e incarichi istituzionali dell'amministrazione;2;Organi istituzionali dell'amministrazione - Rimborsi;21/02/2023;
313;1;0;2.127,15;2.127,15;AL.MA DI ORTU MAURIZIO;Z41396450F;ACCONTO Fatt.n. 253  del 31/01/2023;23/02/2023;4210;3;29;1;Spese correnti;3;Acquisto di beni e servizi;2;Acquisto di servizi;15;Contratti di servizio pubblico;6;Contratti di servizio per le mense scolastiche;23/02/2023;
314;1;0;978,5;978,5;AL.MA DI ORTU MAURIZIO;Z41396450F;ACCONTO Fatt.n. 253  del 31/01/2023;23/02/2023;4210;4;30;1;Spese correnti;3;Acquisto di beni e servizi;2;Acquisto di servizi;15;Contratti di servizio pubblico;6;Contratti di servizio per le mense scolastiche;23/02/2023;
315;1;0;127,87;127,87;AL.MA DI ORTU MAURIZIO;Z41396450F;ACCONTO Fatt.n. 253  del 31/01/2023;23/02/2023;10418;10;31;1;Spese correnti;3;Acquisto di beni e servizi;2;Acquisto di servizi;99;Altri servizi;999;Altri servizi diversi n.a.c.;23/02/2023;
316;1;0;85;85;AL.MA DI ORTU MAURIZIO;Z41396450F;SALDO Fatt.n. 253  del 31/01/2023;23/02/2023;10418;11;32;1;Spese correnti;3;Acquisto di beni e servizi;2;Acquisto di servizi;99;Altri servizi;999;Altri servizi diversi n.a.c.;23/02/2023;
317;1;0;3.477,00;3.477,00;I.M.E.CO. IMPIANTI SRL;ZE33931FA3;SALDO Fatt.n. 46/PA  del 13/02/2023;23/02/2023;21412;22;503;2;Spese in conto capitale;2;Investimenti fissi lordi e acquisto di terreni;1;Beni materiali;9;Beni immobili;999;Beni immobili n.a.c.;23/02/2023;
318;1;0;413,25;413,25;ENEL ENERGIA S.P.A.; ;SALDO Fatt.n. 004306180539  del 12/02/2023;24/02/2023;9619;2;10;1;Spese correnti;3;Acquisto di beni e servizi;2;Acquisto di servizi;5;Utenze e canoni;4;Energia elettrica;24/02/2023;
319;1;0;3.445,10;3.445,10;TESTONI srl;ZEE3A071BB;SALDO Fatt.n. 701164  del 24/02/2023 Consegna a: SCUOLA PRIMARIA E SECONDARIA PRIMO GRADO VIALE EUROPA 2 PIMENTEL 09020 SU;28/02/2023;4310;2;130;1;Spese correnti;3;Acquisto di beni e servizi;1;Acquisto di beni;2;Altri beni di consumo;2;Carburanti, combustibili e lubrificanti;28/02/2023;
320;1;0;180;180;OMESSO NOMINATIVO NEL RISPETTO DELLA NORMATIVA SULLA PROTEZIONE DATI PERSONALI; ;Legge 162/98. Piani personalizzati di sostegno. Liquidazione fatture alla Soc. Coop Sociale Laurus. Gestione indiretta. Gennaio 2023;28/02/2023;10446;3;66;1;Spese correnti;4;Trasferimenti correnti;2;Trasferimenti correnti a Famiglie;5;Altri trasferimenti a famiglie;999;Altri trasferimenti a famiglie n.a.c.;28/02/2023;
321;1;0;220;220;OMESSO NOMINATIVO NEL RISPETTO DELLA NORMATIVA SULLA PROTEZIONE DATI PERSONALI; ;Legge 162/98. Piani personalizzati di sostegno. Liquidazione fatture alla Soc. Coop Sociale Laurus. Gestione indiretta. Gennaio 2023;28/02/2023;10446;3;67;1;Spese correnti;4;Trasferimenti correnti;2;Trasferimenti correnti a Famiglie;5;Altri trasferimenti a famiglie;999;Altri trasferimenti a famiglie n.a.c.;28/02/2023;
322;1;0;300;300;OMESSO NOMINATIVO NEL RISPETTO DELLA NORMATIVA SULLA PROTEZIONE DATI PERSONALI; ;Legge 162/98. Piani personalizzati di sostegno. Liquidazione fatture alla Soc. Coop Sociale Laurus. Gestione indiretta. Gennaio 2023;28/02/2023;10446;3;102;1;Spese correnti;4;Trasferimenti correnti;2;Trasferimenti correnti a Famiglie;5;Altri trasferimenti a famiglie;999;Altri trasferimenti a famiglie n.a.c.;28/02/2023;
323;1;0;123;123;OMESSO NOMINATIVO NEL RISPETTO DELLA NORMATIVA SULLA PROTEZIONE DATI PERSONALI; ;Legge 162/98. Piani personalizzati di sostegno. Liquidazione fatture alla Soc. Coop Sociale Laurus. Gestione indiretta. Gennaio 2023;28/02/2023;10446;3;71;1;Spese correnti;4;Trasferimenti correnti;2;Trasferimenti correnti a Famiglie;5;Altri trasferimenti a famiglie;999;Altri trasferimenti a famiglie n.a.c.;28/02/2023;
324;1;0;180;180;OMESSO NOMINATIVO NEL RISPETTO DELLA NORMATIVA SULLA PROTEZIONE DATI PERSONALI; ;Legge 162/98. Piani personalizzati di sostegno. Liquidazione fatture alla Soc. Coop Sociale Laurus. Gestione indiretta. Gennaio 2023;28/02/2023;10446;3;74;1;Spese correnti;4;Trasferimenti correnti;2;Trasferimenti correnti a Famiglie;5;Altri trasferimenti a famiglie;999;Altri trasferimenti a famiglie n.a.c.;28/02/2023;
325;1;0;170;170;OMESSO NOMINATIVO NEL RISPETTO DELLA NORMATIVA SULLA PROTEZIONE DATI PERSONALI; ;Legge 162/98. Piani personalizzati di sostegno. Liquidazione fatture alla Soc. Coop Sociale Laurus. Gestione indiretta. Gennaio 2023;28/02/2023;10446;3;75;1;Spese correnti;4;Trasferimenti correnti;2;Trasferimenti correnti a Famiglie;5;Altri trasferimenti a famiglie;999;Altri trasferimenti a famiglie n.a.c.;28/02/2023;
326;1;0;360;360;OMESSO NOMINATIVO NEL RISPETTO DELLA NORMATIVA SULLA PROTEZIONE DATI PERSONALI; ;Legge 162/98. Piani personalizzati di sostegno. Liquidazione fatture alla Soc. Coop Sociale Laurus. Gestione indiretta. Gennaio 2023;28/02/2023;10446;3;81;1;Spese correnti;4;Trasferimenti correnti;2;Trasferimenti correnti a Famiglie;5;Altri trasferimenti a famiglie;999;Altri trasferimenti a famiglie n.a.c.;28/02/2023;
327;1;0;750;750;OMESSO NOMINATIVO NEL RISPETTO DELLA NORMATIVA SULLA PROTEZIONE DATI PERSONALI; ;Legge 162/98. Piani personalizzati di sostegno. Liquidazione fatture alla Soc. Coop Sociale Laurus. Gestione indiretta. Gennaio 2023;28/02/2023;10446;3;84;1;Spese correnti;4;Trasferimenti correnti;2;Trasferimenti correnti a Famiglie;5;Altri trasferimenti a famiglie;999;Altri trasferimenti a famiglie n.a.c.;28/02/2023;
328;1;0;300;300;OMESSO NOMINATIVO NEL RISPETTO DELLA NORMATIVA SULLA PROTEZIONE DATI PERSONALI; ;Legge 162/98. Piani personalizzati di sostegno. Liquidazione fatture alla Soc. Coop Sociale Laurus. Gestione indiretta. Gennaio 2023;28/02/2023;10446;3;91;1;Spese correnti;4;Trasferimenti correnti;2;Trasferimenti correnti a Famiglie;5;Altri trasferimenti a famiglie;999;Altri trasferimenti a famiglie n.a.c.;28/02/2023;
329;1;0;360;360;OMESSO NOMINATIVO NEL RISPETTO DELLA NORMATIVA SULLA PROTEZIONE DATI PERSONALI; ;Legge 162/98. Piani personalizzati di sostegno. Liquidazione fatture alla Soc. Coop Sociale Laurus. Gestione indiretta. Gennaio 2023;28/02/2023;10446;3;96;1;Spese correnti;4;Trasferimenti correnti;2;Trasferimenti correnti a Famiglie;5;Altri trasferimenti a famiglie;999;Altri trasferimenti a famiglie n.a.c.;28/02/2023;
330;1;0;300;300;OMESSO NOMINATIVO NEL RISPETTO DELLA NORMATIVA SULLA PROTEZIONE DATI PERSONALI; ;Legge 162/98. Piani personalizzati di sostegno. Liquidazione fatture alla Soc. Coop Sociale Laurus. Gestione indiretta. Gennaio 2023;28/02/2023;10446;3;97;1;Spese correnti;4;Trasferimenti correnti;2;Trasferimenti correnti a Famiglie;5;Altri trasferimenti a famiglie;999;Altri trasferimenti a famiglie n.a.c.;28/02/2023;
331;1;0;11.391,00;11.391,00;UNIONE DEI COMUNI DELLA TREXENTA; ;Assistenza domiciliare anno 2022. liquidazione importi quota utenza effettivamente riscossa in favore dellUnione Comuni della Trexenta.;28/02/2023;10405;9;175;1;Spese correnti;4;Trasferimenti correnti;1;Trasferimenti correnti a Amministrazioni Pubbliche;2;Trasferimenti correnti a Amministrazioni Locali;5;Trasferimenti correnti a Unioni di Comuni;28/02/2023;
332;1;0;302,22;302,22;MINISTERO DELL'INTERNO-AFFARI INTERNI E TERRITORIALI; ;CAPO X CAPITOLO 3746-COMUNE DI PIMENTEL - CORRISPETTIVO RILASCIO N. 18 C.I.E.- GENNAIO 2023;28/02/2023;1229;2;48;1;Spese correnti;4;Trasferimenti correnti;1;Trasferimenti correnti a Amministrazioni Pubbliche;1;Trasferimenti correnti a Amministrazioni Centrali;1;Trasferimenti correnti a Ministeri;28/02/2023;
334;1;0;13.041,80;13.041,80;ELIOS Impianti di Fois Oscar;Z1E384EAED;SALDO Fatt.n. 35  del 27/02/2023;03/03/2023;26121;4;386;2;Spese in conto capitale;2;Investimenti fissi lordi e acquisto di terreni;1;Beni materiali;4;Impianti e macchinari;2;Impianti;03/03/2023;
335;1;0;20;20;OMESSO NOMINATIVO NEL RISPETTO DELLA NORMATIVA SULLA PROTEZIONE DATI PERSONALI; ;1 INCONTRO MONOTEMATICO DI POLIZIA LOCALE - LIQUIDAZIONECONTRIBUTO DI PARTECIPAZIONE;03/03/2023;1207;2;114;1;Spese correnti;3;Acquisto di beni e servizi;2;Acquisto di servizi;4;Acquisto di servizi per formazione e addestramento del personale dell'ente;4;Acquisto di servizi per formazione obbligatoria;03/03/2023;
336;1;0;154,92;154,92;OMESSO NOMINATIVO NEL RISPETTO DELLA NORMATIVA SULLA PROTEZIONE DATI PERSONALI; ;Liquidazione per il mese gennaio 2023  L.R. 27/83.;03/03/2023;10440;1;55;1;Spese correnti;4;Trasferimenti correnti;2;Trasferimenti correnti a Famiglie;5;Altri trasferimenti a famiglie;999;Altri trasferimenti a famiglie n.a.c.;03/03/2023;
337;1;0;947,26;947,26;OMESSO NOMINATIVO NEL RISPETTO DELLA NORMATIVA SULLA PROTEZIONE DATI PERSONALI; ;Liquidazione sussidi L.R. 11/85 per il mese gennaio 2023.;03/03/2023;10440;1;56;1;Spese correnti;4;Trasferimenti correnti;2;Trasferimenti correnti a Famiglie;5;Altri trasferimenti a famiglie;999;Altri trasferimenti a famiglie n.a.c.;03/03/2023;
338;1;0;525,14;525,14;OMESSO NOMINATIVO NEL RISPETTO DELLA NORMATIVA SULLA PROTEZIONE DATI PERSONALI; ;L.R. 9/2004 - Sussidi economici in favore di persone affette da neoplasie maligne. Liquidazione saldo 2022 ad alcuni beneficiari e liquidazione mesi gennaio e febbraio 2023.;03/03/2023;10440;1;139;1;Spese correnti;4;Trasferimenti correnti;2;Trasferimenti correnti a Famiglie;5;Altri trasferimenti a famiglie;999;Altri trasferimenti a famiglie n.a.c.;03/03/2023;
339;1;0;33,88;33,88;OMESSO NOMINATIVO NEL RISPETTO DELLA NORMATIVA SULLA PROTEZIONE DATI PERSONALI; ;L.R. 9/2004 - Sussidi economici in favore di persone affette da neoplasie maligne. Liquidazione saldo 2022 ad alcuni beneficiari e liquidazione mesi gennaio e febbraio 2023.;03/03/2023;10440;1;144;1;Spese correnti;4;Trasferimenti correnti;2;Trasferimenti correnti a Famiglie;5;Altri trasferimenti a famiglie;999;Altri trasferimenti a famiglie n.a.c.;03/03/2023;
340;1;0;195,24;195,24;OMESSO NOMINATIVO NEL RISPETTO DELLA NORMATIVA SULLA PROTEZIONE DATI PERSONALI; ;L.R. 9/2004 - Sussidi economici in favore di persone affette da neoplasie maligne. Liquidazione saldo 2022 ad alcuni beneficiari e liquidazione mesi gennaio e febbraio 2023.;03/03/2023;10440;1;289;1;Spese correnti;4;Trasferimenti correnti;2;Trasferimenti correnti a Famiglie;5;Altri trasferimenti a famiglie;999;Altri trasferimenti a famiglie n.a.c.;03/03/2023;
341;1;0;220,2;220,2;OMESSO NOMINATIVO NEL RISPETTO DELLA NORMATIVA SULLA PROTEZIONE DATI PERSONALI; ;L.R. 9/2004 - Sussidi economici in favore di persone affette da neoplasie maligne. Liquidazione saldo 2022 ad alcuni beneficiari e liquidazione mesi gennaio e febbraio 2023.;03/03/2023;10440;1;292;1;Spese correnti;4;Trasferimenti correnti;2;Trasferimenti correnti a Famiglie;5;Altri trasferimenti a famiglie;999;Altri trasferimenti a famiglie n.a.c.;03/03/2023;
342;1;0;135,52;135,52;OMESSO NOMINATIVO NEL RISPETTO DELLA NORMATIVA SULLA PROTEZIONE DATI PERSONALI; ;L.R. 9/2004 - Sussidi economici in favore di persone affette da neoplasie maligne. Liquidazione saldo 2022 ad alcuni beneficiari e liquidazione mesi gennaio e febbraio 2023.;03/03/2023;10440;1;476;1;Spese correnti;4;Trasferimenti correnti;2;Trasferimenti correnti a Famiglie;5;Altri trasferimenti a famiglie;999;Altri trasferimenti a famiglie n.a.c.;03/03/2023;
343;1;0;16,94;16,94;OMESSO NOMINATIVO NEL RISPETTO DELLA NORMATIVA SULLA PROTEZIONE DATI PERSONALI; ;L.R. 9/2004 - Sussidi economici in favore di persone affette da neoplasie maligne. Liquidazione saldo 2022 ad alcuni beneficiari e liquidazione mesi gennaio e febbraio 2023.;03/03/2023;10440;1;478;1;Spese correnti;4;Trasferimenti correnti;2;Trasferimenti correnti a Famiglie;5;Altri trasferimenti a famiglie;999;Altri trasferimenti a famiglie n.a.c.;03/03/2023;
344;1;0;67,76;67,76;OMESSO NOMINATIVO NEL RISPETTO DELLA NORMATIVA SULLA PROTEZIONE DATI PERSONALI; ;L.R. 9/2004 - Sussidi economici in favore di persone affette da neoplasie maligne. Liquidazione saldo 2022 ad alcuni beneficiari e liquidazione mesi gennaio e febbraio 2023.;03/03/2023;10440;1;492;1;Spese correnti;4;Trasferimenti correnti;2;Trasferimenti correnti a Famiglie;5;Altri trasferimenti a famiglie;999;Altri trasferimenti a famiglie n.a.c.;03/03/2023;
345;1;0;237,16;237,16;OMESSO NOMINATIVO NEL RISPETTO DELLA NORMATIVA SULLA PROTEZIONE DATI PERSONALI; ;L.R. 9/2004 - Sussidi economici in favore di persone affette da neoplasie maligne. Liquidazione saldo 2022 ad alcuni beneficiari e liquidazione mesi gennaio e febbraio 2023.;03/03/2023;10440;1;513;1;Spese correnti;4;Trasferimenti correnti;2;Trasferimenti correnti a Famiglie;5;Altri trasferimenti a famiglie;999;Altri trasferimenti a famiglie n.a.c.;03/03/2023;
346;1;0;524,96;524,96;OMESSO NOMINATIVO NEL RISPETTO DELLA NORMATIVA SULLA PROTEZIONE DATI PERSONALI; ;legge di settore 2023 e saldo 2022 . Liquidazione assegni e viaggi in favore  di due beneficiari L.R. 3/2022.;03/03/2023;10440;1;57;1;Spese correnti;4;Trasferimenti correnti;2;Trasferimenti correnti a Famiglie;5;Altri trasferimenti a famiglie;999;Altri trasferimenti a famiglie n.a.c.;03/03/2023;
347;1;0;1.000,00;1.000,00;OMESSO NOMINATIVO NEL RISPETTO DELLA NORMATIVA SULLA PROTEZIONE DATI PERSONALI; ;legge di settore 2023 e saldo 2022 . Liquidazione assegni e viaggi in favore  di due beneficiari L.R. 3/2022.;03/03/2023;10440;1;487;1;Spese correnti;4;Trasferimenti correnti;2;Trasferimenti correnti a Famiglie;5;Altri trasferimenti a famiglie;999;Altri trasferimenti a famiglie n.a.c.;03/03/2023;
348;1;0;400;400;OMESSO NOMINATIVO NEL RISPETTO DELLA NORMATIVA SULLA PROTEZIONE DATI PERSONALI; ;legge di settore 2023 e saldo 2022 . Liquidazione assegni e viaggi in favore  di due beneficiari L.R. 3/2022.;03/03/2023;10440;1;488;1;Spese correnti;4;Trasferimenti correnti;2;Trasferimenti correnti a Famiglie;5;Altri trasferimenti a famiglie;999;Altri trasferimenti a famiglie n.a.c.;03/03/2023;
349;1;0;1.024,52;1.024,52;OMESSO NOMINATIVO NEL RISPETTO DELLA NORMATIVA SULLA PROTEZIONE DATI PERSONALI; ;LIQUIDAZIONE in favore della Pro loco locale per le attivita svolte nellanno 2022.;03/03/2023;10418;7;515;1;Spese correnti;3;Acquisto di beni e servizi;2;Acquisto di servizi;99;Altri servizi;999;Altri servizi diversi n.a.c.;03/03/2023;
350;1;0;502,51;502,51;OMESSO NOMINATIVO NEL RISPETTO DELLA NORMATIVA SULLA PROTEZIONE DATI PERSONALI; ;LIQUIDAZIONE in favore della Pro loco locale per le attivita svolte nellanno 2022.;03/03/2023;5232;1;514;1;Spese correnti;4;Trasferimenti correnti;4;Trasferimenti correnti a Istituzioni Sociali Private;1;Trasferimenti correnti a Istituzioni Sociali Private;1;Trasferimenti correnti a Istituzioni Sociali Private;03/03/2023;
351;1;0;17,59;17,59;A2A ENERGIA; ;SALDO Fatt.n. 823000037917  del 27/02/2023 FORNITURA ENERGIA ELETTRICA periodo: 01.01.2023-31.01.2023 POD IT001E99898431 Contatore 000000000000966489 kWh 20;06/03/2023;5210;1;1;1;Spese correnti;3;Acquisto di beni e servizi;2;Acquisto di servizi;5;Utenze e canoni;4;Energia elettrica;06/03/2023;
352;1;0;47,45;47,45;A2A ENERGIA; ;SALDO Fatt.n. 823000037918  del 27/02/2023 FORNITURA ENERGIA ELETTRICA periodo: 01.01.2023-31.01.2023 POD IT001E98289340 Contatore 000000000000054064 kWh 42;06/03/2023;6211;6;2;1;Spese correnti;3;Acquisto di beni e servizi;2;Acquisto di servizi;5;Utenze e canoni;4;Energia elettrica;06/03/2023;
353;1;0;228,47;228,47;A2A ENERGIA; ;SALDO Fatt.n. 823000055364  del 27/02/2023 FORNITURA ENERGIA ELETTRICA periodo: 01.01.2023-31.01.2023 POD IT001E99410996 Contatore 000000000000310862 kWh 604;06/03/2023;8214;1;3;1;Spese correnti;3;Acquisto di beni e servizi;2;Acquisto di servizi;5;Utenze e canoni;4;Energia elettrica;06/03/2023;
354;1;0;1.710,00;1.710,00;PIAS ELEONORA; ;Programma Ritornare a casa Plus anno 2022. Liquidazione in favore di un beneficiario. Saldo Ottobre  Novembre e Dicembre 2022;06/03/2023;10418;30;261;1;Spese correnti;4;Trasferimenti correnti;2;Trasferimenti correnti a Famiglie;2;Interventi assistenziali;999;Altri assegni e sussidi assistenziali;06/03/2023;
355;1;0;4.084,56;4.084,56;SVILUPPO SERVIZI ITALIA SOC.COOP. ONLUS;9501414EDC;SALDO Fatt.n. 12FPA  del 28/02/2023;06/03/2023;10418;23;499;1;Spese correnti;3;Acquisto di beni e servizi;2;Acquisto di servizi;99;Altri servizi;999;Altri servizi diversi n.a.c.;06/03/2023;
356;1;0;500;500;OMESSO NOMINATIVO NEL RISPETTO DELLA NORMATIVA SULLA PROTEZIONE DATI PERSONALI; ;Legge 162/98. Anno 2022. Liquidazione Buste Paga Saldo Dicembre 2022 a vari beneficiari;07/03/2023;10446;3;342;1;Spese correnti;4;Trasferimenti correnti;2;Trasferimenti correnti a Famiglie;5;Altri trasferimenti a famiglie;999;Altri trasferimenti a famiglie n.a.c.;07/03/2023;
357;1;0;500;500;OMESSO NOMINATIVO NEL RISPETTO DELLA NORMATIVA SULLA PROTEZIONE DATI PERSONALI; ;Legge 162/98. Anno 2022. Liquidazione Buste Paga Saldo Dicembre 2022 a vari beneficiari;07/03/2023;10446;3;430;1;Spese correnti;4;Trasferimenti correnti;2;Trasferimenti correnti a Famiglie;5;Altri trasferimenti a famiglie;999;Altri trasferimenti a famiglie n.a.c.;07/03/2023;
358;1;0;500;500;OMESSO NOMINATIVO NEL RISPETTO DELLA NORMATIVA SULLA PROTEZIONE DATI PERSONALI; ;Legge 162/98. Anno 2022. Liquidazione Buste Paga Saldo Dicembre 2022 a vari beneficiari;07/03/2023;10446;3;450;1;Spese correnti;4;Trasferimenti correnti;2;Trasferimenti correnti a Famiglie;5;Altri trasferimenti a famiglie;999;Altri trasferimenti a famiglie n.a.c.;07/03/2023;
359;1;0;146,88;146,88;OMESSO NOMINATIVO NEL RISPETTO DELLA NORMATIVA SULLA PROTEZIONE DATI PERSONALI; ;Legge 162/98. Anno 2022. Liquidazione Buste Paga Saldo Dicembre 2022 a vari beneficiari;07/03/2023;10446;3;473;1;Spese correnti;4;Trasferimenti correnti;2;Trasferimenti correnti a Famiglie;5;Altri trasferimenti a famiglie;999;Altri trasferimenti a famiglie n.a.c.;07/03/2023;
360;1;0;187,5;187,5;OMESSO NOMINATIVO NEL RISPETTO DELLA NORMATIVA SULLA PROTEZIONE DATI PERSONALI; ;Legge 162/98. Anno 2022. Liquidazione Buste Paga Saldo Dicembre 2022 a vari beneficiari;07/03/2023;10446;3;474;1;Spese correnti;4;Trasferimenti correnti;2;Trasferimenti correnti a Famiglie;5;Altri trasferimenti a famiglie;999;Altri trasferimenti a famiglie n.a.c.;07/03/2023;
361;1;0;4.758,00;4.758,00;"LA GHIANDA  A.R.L. COOPERATIVA SOCIALE ""B""";Z1B3965B2C;SALDO Fatt.n. 1/44  del 28/02/2023 SERVIZIO MESE DI   febbraio  2023;07/03/2023;10216;1;124;1;Spese correnti;3;Acquisto di beni e servizi;2;Acquisto di servizi;15;Contratti di servizio pubblico;999;Altre spese per contratti di servizio pubblico;07/03/2023;
362;1;0;17,54;17,54;POSTE ITALIANE  S.P.A.;Z772D2A195;SALDO Fatt.n. 1023061078  del 03/03/2023 32007847-001;07/03/2023;1207;8;116;1;Spese correnti;3;Acquisto di beni e servizi;2;Acquisto di servizi;16;Servizi amministrativi;2;Spese postali;07/03/2023;
363;1;0;1.216,95;1.216,95;I.M.E.CO. IMPIANTI SRL;ZEF2F4F38D;SALDO Fatt.n. 54/PA  del 01/03/2023;09/03/2023;8214;2;145;1;Spese correnti;3;Acquisto di beni e servizi;2;Acquisto di servizi;9;Manutenzione ordinaria e riparazioni;8;Manutenzione ordinaria e riparazioni di beni immobili;09/03/2023;
364;1;0;5.307,00;5.307,00;I.M.E.CO. IMPIANTI SRL;Z7A38A2C6A;SALDO Fatt.n. 60/PA  del 03/03/2023;09/03/2023;21412;22;417;2;Spese in conto capitale;2;Investimenti fissi lordi e acquisto di terreni;1;Beni materiali;9;Beni immobili;999;Beni immobili n.a.c.;09/03/2023;
365;1;0;660,83;660,83;I.M.E.CO. IMPIANTI SRL;Z63322C276;SALDO Fatt.n. 57/PA  del 01/03/2023;09/03/2023;9619;7;177;1;Spese correnti;3;Acquisto di beni e servizi;2;Acquisto di servizi;99;Altri servizi;999;Altri servizi diversi n.a.c.;09/03/2023;
366;1;0;347,7;347,7;I.M.E.CO. IMPIANTI SRL;Z3837B0E5D;SALDO Fatt.n. 61/PA  del 06/03/2023;09/03/2023;28210;2;303;2;Spese in conto capitale;2;Investimenti fissi lordi e acquisto di terreni;1;Beni materiali;4;Impianti e macchinari;2;Impianti;09/03/2023;
367;1;0;518,5;518,5;I.M.E.CO. IMPIANTI SRL;ZCA37EB7D3;SALDO Fatt.n. 62/PA  del 06/03/2023;09/03/2023;28210;2;369;2;Spese in conto capitale;2;Investimenti fissi lordi e acquisto di terreni;1;Beni materiali;4;Impianti e macchinari;2;Impianti;09/03/2023;
368;1;0;207,4;207,4;I.M.E.CO. IMPIANTI SRL;ZB63A1A827;SALDO Fatt.n. 63/PA  del 06/03/2023;09/03/2023;21412;21;140;2;Spese in conto capitale;2;Investimenti fissi lordi e acquisto di terreni;1;Beni materiali;9;Beni immobili;999;Beni immobili n.a.c.;09/03/2023;
369;1;0;2.028,67;2.028,67;AL.MA DI ORTU MAURIZIO;Z41396450F;ACCONTO Fatt.n. 276  del 28/02/2023;09/03/2023;4210;3;29;1;Spese correnti;3;Acquisto di beni e servizi;2;Acquisto di servizi;15;Contratti di servizio pubblico;6;Contratti di servizio per le mense scolastiche;09/03/2023;
370;1;0;915,5;915,5;AL.MA DI ORTU MAURIZIO;Z41396450F;ACCONTO Fatt.n. 276  del 28/02/2023;09/03/2023;4210;4;30;1;Spese correnti;3;Acquisto di beni e servizi;2;Acquisto di servizi;15;Contratti di servizio pubblico;6;Contratti di servizio per le mense scolastiche;09/03/2023;
371;1;0;150,44;150,44;AL.MA DI ORTU MAURIZIO;Z41396450F;ACCONTO Fatt.n. 276  del 28/02/2023;09/03/2023;10418;10;31;1;Spese correnti;3;Acquisto di beni e servizi;2;Acquisto di servizi;99;Altri servizi;999;Altri servizi diversi n.a.c.;09/03/2023;
372;1;0;100;100;AL.MA DI ORTU MAURIZIO;Z41396450F;SALDO Fatt.n. 276  del 28/02/2023;09/03/2023;10418;11;32;1;Spese correnti;3;Acquisto di beni e servizi;2;Acquisto di servizi;99;Altri servizi;999;Altri servizi diversi n.a.c.;09/03/2023;
373;1;0;43;43;OMESSO NOMINATIVO NEL RISPETTO DELLA NORMATIVA SULLA PROTEZIONE DATI PERSONALI; ;Congresso anci 2022. Liquidazione spese del vicesindaco.;09/03/2023;1106;9;422;1;Spese correnti;3;Acquisto di beni e servizi;2;Acquisto di servizi;1;Organi e incarichi istituzionali dell'amministrazione;2;Organi istituzionali dell'amministrazione - Rimborsi;09/03/2023;
374;1;0;310;310;ANUSCA srl; ;QUOTA ASSOCIATIVA  A.N.U.S.C.A (Associazione Italiana Ufficiali di Stato civile e dAnagrafe) ANNUALITA 2023 - QUOTA D;09/03/2023;1228;1;43;1;Spese correnti;3;Acquisto di beni e servizi;2;Acquisto di servizi;99;Altri servizi;3;Quote di associazioni;09/03/2023;
378;1;0;4.633,80;4.633,80;OMESSO NOMINATIVO NEL RISPETTO DELLA NORMATIVA SULLA PROTEZIONE DATI PERSONALI;Z97389B6BB;SALDO Fatt.n. 5/FE  del 08/03/2023 PROGETTO PRELIMINARE LAVORI DI RIQUALIFICAZ. VIA ROMA;14/03/2023;20618;10;484;2;Spese in conto capitale;2;Investimenti fissi lordi e acquisto di terreni;3;Beni immateriali;5;Incarichi professionali per la realizzazione di investimenti;1;Incarichi professionali per la realizzazione di investimenti;14/03/2023;
379;1;0;160;160;LIBRERIE GIUNTI AL PUNTO;Z2A38880F0;SALDO Fatt.n. 2023013067  del 28/02/2023 FORNITURA GIFT CARD - EFFETTUATA PER NS. CONTO DA LIBRERIA GIUNTI AL PUNTO PRESSO CAGLIARI;14/03/2023;1711;21;400;1;Spese correnti;3;Acquisto di beni e servizi;2;Acquisto di servizi;99;Altri servizi;999;Altri servizi diversi n.a.c.;14/03/2023;
380;1;0;40.000,00;40.000,00;UNIONE DEI COMUNI DELLA TREXENTA; ;Assistenza domiciliare in forma associata anno 2023. Liquidazione saldo 2022 e  acconto 2023 in favore dellPLUS Trexenta.;14/03/2023;10405;10;155;1;Spese correnti;4;Trasferimenti correnti;1;Trasferimenti correnti a Amministrazioni Pubbliche;2;Trasferimenti correnti a Amministrazioni Locali;5;Trasferimenti correnti a Unioni di Comuni;14/03/2023;
381;1;0;488;488;DASEIN  S.R.L.;Z2E39F2882;SALDO Fatt.n. 331/E-8  del 28/02/2023 FORNITURA APPLICATIVO DA-TE X GESTIONE FONDO PRODUTTIVITA' ANNO 2023;14/03/2023;1207;5;118;1;Spese correnti;3;Acquisto di beni e servizi;2;Acquisto di servizi;7;Utilizzo di beni di terzi;6;Licenze d'uso per software;14/03/2023;
382;1;0;2.287,50;2.287,50;HALLEY SARDEGNA S.R.L.;Z0A3A1B2A9;SALDO Fatt.n. 0000229  del 13/03/2023 SERVIZIO DI ASSISTENZA SOFTWARE GESTIONALE ENTE 1^ TRIMESTRE 2023;14/03/2023;1207;5;146;1;Spese correnti;3;Acquisto di beni e servizi;2;Acquisto di servizi;7;Utilizzo di beni di terzi;6;Licenze d'uso per software;14/03/2023;
410;1;0;1.482,77;1.482,77;PERSONALE DIPENDENTE; ;STIPENDI MESE DI: MARZO 23;15/03/2023;1236;15;497;1;Spese correnti;4;Trasferimenti correnti;1;Trasferimenti correnti a Amministrazioni Pubbliche;2;Trasferimenti correnti a Amministrazioni Locali;3;Trasferimenti correnti a Comuni;15/03/2023;
431;1;0;103,7;103,7;AGENZIA FUNEBRE S.LUSSORIO;ZA438C1E0C;SALDO Fatt.n. 3  del 10/03/2023;17/03/2023;1206;11;427;1;Spese correnti;3;Acquisto di beni e servizi;1;Acquisto di beni;2;Altri beni di consumo;9;Beni per attività di rappresentanza;17/03/2023;
432;1;0;218,27;218,27;MINISTERO DELL'INTERNO-AFFARI INTERNI E TERRITORIALI; ;CAPO X CAPITOLO 3746 Decreto Ministeriale 25.05.2016 - incassi relativi ai diritti nuove CIE. Liquidazione Somme in favore del Ministero  FEBBRAIO 2023;17/03/2023;1229;2;48;1;Spese correnti;4;Trasferimenti correnti;1;Trasferimenti correnti a Amministrazioni Pubbliche;1;Trasferimenti correnti a Amministrazioni Centrali;1;Trasferimenti correnti a Ministeri;17/03/2023;
433;1;0;1.250,00;1.250,00;OMESSO NOMINATIVO NEL RISPETTO DELLA NORMATIVA SULLA PROTEZIONE DATI PERSONALI; ;Fondi diritto allo studio anno 2023. Liquidazione fondi anno 2023  scuola infanzia;17/03/2023;4130;1;157;1;Spese correnti;4;Trasferimenti correnti;1;Trasferimenti correnti a Amministrazioni Pubbliche;2;Trasferimenti correnti a Amministrazioni Locali;999;Trasferimenti correnti a altre Amministrazioni Locali n.a.c.;17/03/2023;
434;1;0;500;500;OMESSO NOMINATIVO NEL RISPETTO DELLA NORMATIVA SULLA PROTEZIONE DATI PERSONALI; ;Fondi diritto allo studio anno 2023. Liquidazione fondi anno 2023 per materiale di consumo pulizie;17/03/2023;4130;3;158;1;Spese correnti;4;Trasferimenti correnti;1;Trasferimenti correnti a Amministrazioni Pubbliche;2;Trasferimenti correnti a Amministrazioni Locali;999;Trasferimenti correnti a altre Amministrazioni Locali n.a.c.;17/03/2023;
435;1;0;1.000,00;1.000,00;"ISTITUTO COMPRENSIVO STATALE ""G.CIMA"""; ;Fondi diritto allo studio anno 2023. Liquidazione fondi anno 2023 per contributo progetto scuola dellinfanzia;17/03/2023;4130;4;309;1;Spese correnti;4;Trasferimenti correnti;1;Trasferimenti correnti a Amministrazioni Pubbliche;1;Trasferimenti correnti a Amministrazioni Centrali;2;Trasferimenti correnti a Ministero dell'Istruzione - Istituzioni scolastiche;17/03/2023;
436;1;0;2.500,00;2.500,00;"ISTITUTO COMPRENSIVO STATALE ""G.CIMA"""; ;Fondi diritto allo studio anno 2023. Liquidazione fondi anno 2023 per contributi scuola primaria;17/03/2023;4212;1;159;1;Spese correnti;4;Trasferimenti correnti;1;Trasferimenti correnti a Amministrazioni Pubbliche;2;Trasferimenti correnti a Amministrazioni Locali;999;Trasferimenti correnti a altre Amministrazioni Locali n.a.c.;17/03/2023;
437;1;0;1.000,00;1.000,00;"ISTITUTO COMPRENSIVO STATALE ""G.CIMA"""; ;Fondi diritto allo studio anno 2023. Liquidazione fondi anno 2023 per lacquisto di materiale didattico e progetti delle scuole di Pimentel di ogni ordine e grado.;17/03/2023;4212;3;311;1;Spese correnti;4;Trasferimenti correnti;1;Trasferimenti correnti a Amministrazioni Pubbliche;1;Trasferimenti correnti a Amministrazioni Centrali;2;Trasferimenti correnti a Ministero dell'Istruzione - Istituzioni scolastiche;17/03/2023;
438;1;0;1.500,00;1.500,00;"ISTITUTO COMPRENSIVO STATALE ""G.CIMA"""; ;Fondi diritto allo studio anno 2023. Liquidazione fondi anno 2023 per lacquisto di materiale didattico e progetti delle scuole di Pimentel di ogni ordine e grado.;17/03/2023;4212;3;530;1;Spese correnti;4;Trasferimenti correnti;1;Trasferimenti correnti a Amministrazioni Pubbliche;1;Trasferimenti correnti a Amministrazioni Centrali;2;Trasferimenti correnti a Ministero dell'Istruzione - Istituzioni scolastiche;17/03/2023;
439;1;0;2.000,00;2.000,00;"ISTITUTO COMPRENSIVO STATALE ""G.CIMA"""; ;Fondi diritto allo studio anno 2023. Liquidazione fondi anno 2023 per scuola secondaria di primo grado;17/03/2023;4313;3;160;1;Spese correnti;4;Trasferimenti correnti;1;Trasferimenti correnti a Amministrazioni Pubbliche;2;Trasferimenti correnti a Amministrazioni Locali;999;Trasferimenti correnti a altre Amministrazioni Locali n.a.c.;17/03/2023;
440;1;0;610,31;610,31;LAGO E NURAGHE COOPERATIVA SOCIALE;Z023958A75;SALDO Fatt.n. 45/PA  del 11/02/2023;17/03/2023;10216;10;537;1;Spese correnti;3;Acquisto di beni e servizi;2;Acquisto di servizi;15;Contratti di servizio pubblico;999;Altre spese per contratti di servizio pubblico;17/03/2023;
441;1;0;223,02;223,02;LAGO E NURAGHE COOPERATIVA SOCIALE;Z023958A75;ACCONTO Fatt.n. 82/PA  del 14/03/2023;17/03/2023;10216;10;537;1;Spese correnti;3;Acquisto di beni e servizi;2;Acquisto di servizi;15;Contratti di servizio pubblico;999;Altre spese per contratti di servizio pubblico;17/03/2023;
442;1;0;573,03;573,03;OMESSO NOMINATIVO NEL RISPETTO DELLA NORMATIVA SULLA PROTEZIONE DATI PERSONALI;Z023958A75;SALDO Fatt.n. 82/PA  del 14/03/2023;17/03/2023;10216;10;134;1;Spese correnti;3;Acquisto di beni e servizi;2;Acquisto di servizi;15;Contratti di servizio pubblico;999;Altre spese per contratti di servizio pubblico;17/03/2023;
443;1;0;2.608,20;2.608,20;OMESSO NOMINATIVO NEL RISPETTO DELLA NORMATIVA SULLA PROTEZIONE DATI PERSONALI; ;STIPENDI MESE DI: MARZO 23;20/03/2023;1106;1;39;1;Spese correnti;3;Acquisto di beni e servizi;2;Acquisto di servizi;1;Organi e incarichi istituzionali dell'amministrazione;1;Organi istituzionali dell'amministrazione - Indennità;20/03/2023;
446;1;0;395,83;395,83;OMESSO NOMINATIVO NEL RISPETTO DELLA NORMATIVA SULLA PROTEZIONE DATI PERSONALI; ;Legge 162/98. Anno 2023. Liquidazione Buste Paga Febbraio 2023 e residui Gennaio 2023 a vari beneficiari.;21/03/2023;10446;3;60;1;Spese correnti;4;Trasferimenti correnti;2;Trasferimenti correnti a Famiglie;5;Altri trasferimenti a famiglie;999;Altri trasferimenti a famiglie n.a.c.;21/03/2023;
447;1;0;215,05;215,05;OMESSO NOMINATIVO NEL RISPETTO DELLA NORMATIVA SULLA PROTEZIONE DATI PERSONALI; ;Legge 162/98. Anno 2023. Liquidazione Buste Paga Febbraio 2023 e residui Gennaio 2023 a vari beneficiari.;21/03/2023;10446;3;61;1;Spese correnti;4;Trasferimenti correnti;2;Trasferimenti correnti a Famiglie;5;Altri trasferimenti a famiglie;999;Altri trasferimenti a famiglie n.a.c.;21/03/2023;
448;1;0;330,18;330,18;OMESSO NOMINATIVO NEL RISPETTO DELLA NORMATIVA SULLA PROTEZIONE DATI PERSONALI; ;Legge 162/98. Anno 2023. Liquidazione Buste Paga Febbraio 2023 e residui Gennaio 2023 a vari beneficiari.;21/03/2023;10446;3;62;1;Spese correnti;4;Trasferimenti correnti;2;Trasferimenti correnti a Famiglie;5;Altri trasferimenti a famiglie;999;Altri trasferimenti a famiglie n.a.c.;21/03/2023;
449;1;0;151,56;151,56;OMESSO NOMINATIVO NEL RISPETTO DELLA NORMATIVA SULLA PROTEZIONE DATI PERSONALI; ;Legge 162/98. Anno 2023. Liquidazione Buste Paga Febbraio 2023 e residui Gennaio 2023 a vari beneficiari.;21/03/2023;10446;3;63;1;Spese correnti;4;Trasferimenti correnti;2;Trasferimenti correnti a Famiglie;5;Altri trasferimenti a famiglie;999;Altri trasferimenti a famiglie n.a.c.;21/03/2023;
450;1;0;181,87;181,87;OMESSO NOMINATIVO NEL RISPETTO DELLA NORMATIVA SULLA PROTEZIONE DATI PERSONALI; ;Legge 162/98. Anno 2023. Liquidazione Buste Paga Febbraio 2023 e residui Gennaio 2023 a vari beneficiari.;21/03/2023;10446;3;64;1;Spese correnti;4;Trasferimenti correnti;2;Trasferimenti correnti a Famiglie;5;Altri trasferimenti a famiglie;999;Altri trasferimenti a famiglie n.a.c.;21/03/2023;
451;1;0;323,81;323,81;OMESSO NOMINATIVO NEL RISPETTO DELLA NORMATIVA SULLA PROTEZIONE DATI PERSONALI; ;Legge 162/98. Anno 2023. Liquidazione Buste Paga Febbraio 2023 e residui Gennaio 2023 a vari beneficiari.;21/03/2023;10446;3;65;1;Spese correnti;4;Trasferimenti correnti;2;Trasferimenti correnti a Famiglie;5;Altri trasferimenti a famiglie;999;Altri trasferimenti a famiglie n.a.c.;21/03/2023;
452;1;0;215,3;215,3;OMESSO NOMINATIVO NEL RISPETTO DELLA NORMATIVA SULLA PROTEZIONE DATI PERSONALI; ;Legge 162/98. Anno 2023. Liquidazione Buste Paga Febbraio 2023 e residui Gennaio 2023 a vari beneficiari.;21/03/2023;10446;3;68;1;Spese correnti;4;Trasferimenti correnti;2;Trasferimenti correnti a Famiglie;5;Altri trasferimenti a famiglie;999;Altri trasferimenti a famiglie n.a.c.;21/03/2023;
453;1;0;318,75;318,75;OMESSO NOMINATIVO NEL RISPETTO DELLA NORMATIVA SULLA PROTEZIONE DATI PERSONALI; ;Legge 162/98. Anno 2023. Liquidazione Buste Paga Febbraio 2023 e residui Gennaio 2023 a vari beneficiari.;21/03/2023;10446;3;69;1;Spese correnti;4;Trasferimenti correnti;2;Trasferimenti correnti a Famiglie;5;Altri trasferimenti a famiglie;999;Altri trasferimenti a famiglie n.a.c.;21/03/2023;
454;1;0;1.000,00;1.000,00;OMESSO NOMINATIVO NEL RISPETTO DELLA NORMATIVA SULLA PROTEZIONE DATI PERSONALI; ;Legge 162/98. Anno 2023. Liquidazione Buste Paga Febbraio 2023 e residui Gennaio 2023 a vari beneficiari.;21/03/2023;10446;3;70;1;Spese correnti;4;Trasferimenti correnti;2;Trasferimenti correnti a Famiglie;5;Altri trasferimenti a famiglie;999;Altri trasferimenti a famiglie n.a.c.;21/03/2023;
455;1;0;620,43;620,43;OMESSO NOMINATIVO NEL RISPETTO DELLA NORMATIVA SULLA PROTEZIONE DATI PERSONALI; ;Legge 162/98. Anno 2023. Liquidazione Buste Paga Febbraio 2023 e residui Gennaio 2023 a vari beneficiari.;21/03/2023;10446;3;72;1;Spese correnti;4;Trasferimenti correnti;2;Trasferimenti correnti a Famiglie;5;Altri trasferimenti a famiglie;999;Altri trasferimenti a famiglie n.a.c.;21/03/2023;
456;1;0;151,56;151,56;OMESSO NOMINATIVO NEL RISPETTO DELLA NORMATIVA SULLA PROTEZIONE DATI PERSONALI; ;Legge 162/98. Anno 2023. Liquidazione Buste Paga Febbraio 2023 e residui Gennaio 2023 a vari beneficiari.;21/03/2023;10446;3;73;1;Spese correnti;4;Trasferimenti correnti;2;Trasferimenti correnti a Famiglie;5;Altri trasferimenti a famiglie;999;Altri trasferimenti a famiglie n.a.c.;21/03/2023;
457;1;0;187,5;187,5;OMESSO NOMINATIVO NEL RISPETTO DELLA NORMATIVA SULLA PROTEZIONE DATI PERSONALI; ;Legge 162/98. Anno 2023. Liquidazione Buste Paga Febbraio 2023 e residui Gennaio 2023 a vari beneficiari.;21/03/2023;10446;3;76;1;Spese correnti;4;Trasferimenti correnti;2;Trasferimenti correnti a Famiglie;5;Altri trasferimenti a famiglie;999;Altri trasferimenti a famiglie n.a.c.;21/03/2023;
458;1;0;306,19;306,19;OMESSO NOMINATIVO NEL RISPETTO DELLA NORMATIVA SULLA PROTEZIONE DATI PERSONALI; ;Legge 162/98. Anno 2023. Liquidazione Buste Paga Febbraio 2023 e residui Gennaio 2023 a vari beneficiari.;21/03/2023;10446;3;77;1;Spese correnti;4;Trasferimenti correnti;2;Trasferimenti correnti a Famiglie;5;Altri trasferimenti a famiglie;999;Altri trasferimenti a famiglie n.a.c.;21/03/2023;
459;1;0;166,66;166,66;OMESSO NOMINATIVO NEL RISPETTO DELLA NORMATIVA SULLA PROTEZIONE DATI PERSONALI; ;Legge 162/98. Anno 2023. Liquidazione Buste Paga Febbraio 2023 e residui Gennaio 2023 a vari beneficiari.;21/03/2023;10446;3;78;1;Spese correnti;4;Trasferimenti correnti;2;Trasferimenti correnti a Famiglie;5;Altri trasferimenti a famiglie;999;Altri trasferimenti a famiglie n.a.c.;21/03/2023;
460;1;0;293,75;293,75;OMESSO NOMINATIVO NEL RISPETTO DELLA NORMATIVA SULLA PROTEZIONE DATI PERSONALI; ;Legge 162/98. Anno 2023. Liquidazione Buste Paga Febbraio 2023 e residui Gennaio 2023 a vari beneficiari.;21/03/2023;10446;3;82;1;Spese correnti;4;Trasferimenti correnti;2;Trasferimenti correnti a Famiglie;5;Altri trasferimenti a famiglie;999;Altri trasferimenti a famiglie n.a.c.;21/03/2023;
461;1;0;626,36;626,36;OMESSO NOMINATIVO NEL RISPETTO DELLA NORMATIVA SULLA PROTEZIONE DATI PERSONALI; ;Legge 162/98. Anno 2023. Liquidazione Buste Paga Febbraio 2023 e residui Gennaio 2023 a vari beneficiari.;21/03/2023;10446;3;85;1;Spese correnti;4;Trasferimenti correnti;2;Trasferimenti correnti a Famiglie;5;Altri trasferimenti a famiglie;999;Altri trasferimenti a famiglie n.a.c.;21/03/2023;
462;1;0;210,86;210,86;OMESSO NOMINATIVO NEL RISPETTO DELLA NORMATIVA SULLA PROTEZIONE DATI PERSONALI; ;Legge 162/98. Anno 2023. Liquidazione Buste Paga Febbraio 2023 e residui Gennaio 2023 a vari beneficiari.;21/03/2023;10446;3;88;1;Spese correnti;4;Trasferimenti correnti;2;Trasferimenti correnti a Famiglie;5;Altri trasferimenti a famiglie;999;Altri trasferimenti a famiglie n.a.c.;21/03/2023;
463;1;0;106,99;106,99;OMESSO NOMINATIVO NEL RISPETTO DELLA NORMATIVA SULLA PROTEZIONE DATI PERSONALI; ;Legge 162/98. Anno 2023. Liquidazione Buste Paga Febbraio 2023 e residui Gennaio 2023 a vari beneficiari.;21/03/2023;10446;3;89;1;Spese correnti;4;Trasferimenti correnti;2;Trasferimenti correnti a Famiglie;5;Altri trasferimenti a famiglie;999;Altri trasferimenti a famiglie n.a.c.;21/03/2023;
464;1;0;118,47;118,47;OMESSO NOMINATIVO NEL RISPETTO DELLA NORMATIVA SULLA PROTEZIONE DATI PERSONALI; ;Legge 162/98. Anno 2023. Liquidazione Buste Paga Febbraio 2023 e residui Gennaio 2023 a vari beneficiari.;21/03/2023;10446;3;90;1;Spese correnti;4;Trasferimenti correnti;2;Trasferimenti correnti a Famiglie;5;Altri trasferimenti a famiglie;999;Altri trasferimenti a famiglie n.a.c.;21/03/2023;
465;1;0;131,69;131,69;OMESSO NOMINATIVO NEL RISPETTO DELLA NORMATIVA SULLA PROTEZIONE DATI PERSONALI; ;Legge 162/98. Anno 2023. Liquidazione Buste Paga Febbraio 2023 e residui Gennaio 2023 a vari beneficiari.;21/03/2023;10446;3;90;1;Spese correnti;4;Trasferimenti correnti;2;Trasferimenti correnti a Famiglie;5;Altri trasferimenti a famiglie;999;Altri trasferimenti a famiglie n.a.c.;21/03/2023;
466;1;0;446,85;446,85;OMESSO NOMINATIVO NEL RISPETTO DELLA NORMATIVA SULLA PROTEZIONE DATI PERSONALI; ;Legge 162/98. Anno 2023. Liquidazione Buste Paga Febbraio 2023 e residui Gennaio 2023 a vari beneficiari.;21/03/2023;10446;3;92;1;Spese correnti;4;Trasferimenti correnti;2;Trasferimenti correnti a Famiglie;5;Altri trasferimenti a famiglie;999;Altri trasferimenti a famiglie n.a.c.;21/03/2023;
467;1;0;245;245;OMESSO NOMINATIVO NEL RISPETTO DELLA NORMATIVA SULLA PROTEZIONE DATI PERSONALI; ;Legge 162/98. Anno 2023. Liquidazione Buste Paga Febbraio 2023 e residui Gennaio 2023 a vari beneficiari.;21/03/2023;10446;3;93;1;Spese correnti;4;Trasferimenti correnti;2;Trasferimenti correnti a Famiglie;5;Altri trasferimenti a famiglie;999;Altri trasferimenti a famiglie n.a.c.;21/03/2023;
468;1;0;284,37;284,37;OMESSO NOMINATIVO NEL RISPETTO DELLA NORMATIVA SULLA PROTEZIONE DATI PERSONALI; ;Legge 162/98. Anno 2023. Liquidazione Buste Paga Febbraio 2023 e residui Gennaio 2023 a vari beneficiari.;21/03/2023;10446;3;94;1;Spese correnti;4;Trasferimenti correnti;2;Trasferimenti correnti a Famiglie;5;Altri trasferimenti a famiglie;999;Altri trasferimenti a famiglie n.a.c.;21/03/2023;
469;1;0;341,25;341,25;OMESSO NOMINATIVO NEL RISPETTO DELLA NORMATIVA SULLA PROTEZIONE DATI PERSONALI; ;Legge 162/98. Anno 2023. Liquidazione Buste Paga Febbraio 2023 e residui Gennaio 2023 a vari beneficiari.;21/03/2023;10446;3;95;1;Spese correnti;4;Trasferimenti correnti;2;Trasferimenti correnti a Famiglie;5;Altri trasferimenti a famiglie;999;Altri trasferimenti a famiglie n.a.c.;21/03/2023;
470;1;0;104,05;104,05;OMESSO NOMINATIVO NEL RISPETTO DELLA NORMATIVA SULLA PROTEZIONE DATI PERSONALI; ;Legge 162/98. Anno 2023. Liquidazione Buste Paga Febbraio 2023 e residui Gennaio 2023 a vari beneficiari.;21/03/2023;10446;3;98;1;Spese correnti;4;Trasferimenti correnti;2;Trasferimenti correnti a Famiglie;5;Altri trasferimenti a famiglie;999;Altri trasferimenti a famiglie n.a.c.;21/03/2023;
471;1;0;328,41;328,41;OMESSO NOMINATIVO NEL RISPETTO DELLA NORMATIVA SULLA PROTEZIONE DATI PERSONALI; ;Legge 162/98. Anno 2023. Liquidazione Buste Paga Febbraio 2023 e residui Gennaio 2023 a vari beneficiari.;21/03/2023;10446;3;99;1;Spese correnti;4;Trasferimenti correnti;2;Trasferimenti correnti a Famiglie;5;Altri trasferimenti a famiglie;999;Altri trasferimenti a famiglie n.a.c.;21/03/2023;
472;1;0;176,25;176,25;OMESSO NOMINATIVO NEL RISPETTO DELLA NORMATIVA SULLA PROTEZIONE DATI PERSONALI; ;Legge 162/98. Anno 2023. Liquidazione Buste Paga Febbraio 2023 e residui Gennaio 2023 a vari beneficiari.;21/03/2023;10446;3;100;1;Spese correnti;4;Trasferimenti correnti;2;Trasferimenti correnti a Famiglie;5;Altri trasferimenti a famiglie;999;Altri trasferimenti a famiglie n.a.c.;21/03/2023;
473;1;0;176,25;176,25;OMESSO NOMINATIVO NEL RISPETTO DELLA NORMATIVA SULLA PROTEZIONE DATI PERSONALI; ;Legge 162/98. Anno 2023. Liquidazione Buste Paga Febbraio 2023 e residui Gennaio 2023 a vari beneficiari.;21/03/2023;10446;3;100;1;Spese correnti;4;Trasferimenti correnti;2;Trasferimenti correnti a Famiglie;5;Altri trasferimenti a famiglie;999;Altri trasferimenti a famiglie n.a.c.;21/03/2023;
474;1;0;103,43;103,43;OMESSO NOMINATIVO NEL RISPETTO DELLA NORMATIVA SULLA PROTEZIONE DATI PERSONALI; ;Legge 162/98. Anno 2023. Liquidazione Buste Paga Febbraio 2023 e residui Gennaio 2023 a vari beneficiari.;21/03/2023;10446;3;103;1;Spese correnti;4;Trasferimenti correnti;2;Trasferimenti correnti a Famiglie;5;Altri trasferimenti a famiglie;999;Altri trasferimenti a famiglie n.a.c.;21/03/2023;
475;1;0;187,5;187,5;OMESSO NOMINATIVO NEL RISPETTO DELLA NORMATIVA SULLA PROTEZIONE DATI PERSONALI; ;Legge 162/98. Anno 2023. Liquidazione Buste Paga Febbraio 2023 e residui Gennaio 2023 a vari beneficiari.;21/03/2023;10446;3;104;1;Spese correnti;4;Trasferimenti correnti;2;Trasferimenti correnti a Famiglie;5;Altri trasferimenti a famiglie;999;Altri trasferimenti a famiglie n.a.c.;21/03/2023;
476;1;0;312,5;312,5;OMESSO NOMINATIVO NEL RISPETTO DELLA NORMATIVA SULLA PROTEZIONE DATI PERSONALI; ;Legge 162/98. Anno 2023. Liquidazione Buste Paga Febbraio 2023 e residui Gennaio 2023 a vari beneficiari.;21/03/2023;10446;3;105;1;Spese correnti;4;Trasferimenti correnti;2;Trasferimenti correnti a Famiglie;5;Altri trasferimenti a famiglie;999;Altri trasferimenti a famiglie n.a.c.;21/03/2023;
477;1;0;139,19;139,19;OMESSO NOMINATIVO NEL RISPETTO DELLA NORMATIVA SULLA PROTEZIONE DATI PERSONALI; ;Legge 162/98. Anno 2023. Liquidazione Buste Paga Febbraio 2023 e residui Gennaio 2023 a vari beneficiari.;21/03/2023;10446;3;106;1;Spese correnti;4;Trasferimenti correnti;2;Trasferimenti correnti a Famiglie;5;Altri trasferimenti a famiglie;999;Altri trasferimenti a famiglie n.a.c.;21/03/2023;
478;1;0;173,99;173,99;OMESSO NOMINATIVO NEL RISPETTO DELLA NORMATIVA SULLA PROTEZIONE DATI PERSONALI; ;Legge 162/98. Anno 2023. Liquidazione Buste Paga Febbraio 2023 e residui Gennaio 2023 a vari beneficiari.;21/03/2023;10446;3;107;1;Spese correnti;4;Trasferimenti correnti;2;Trasferimenti correnti a Famiglie;5;Altri trasferimenti a famiglie;999;Altri trasferimenti a famiglie n.a.c.;21/03/2023;
479;1;0;146,88;146,88;OMESSO NOMINATIVO NEL RISPETTO DELLA NORMATIVA SULLA PROTEZIONE DATI PERSONALI; ;Legge 162/98. Anno 2023. Liquidazione Buste Paga Febbraio 2023 e residui Gennaio 2023 a vari beneficiari.;21/03/2023;10446;3;108;1;Spese correnti;4;Trasferimenti correnti;2;Trasferimenti correnti a Famiglie;5;Altri trasferimenti a famiglie;999;Altri trasferimenti a famiglie n.a.c.;21/03/2023;
480;1;0;835,86;835,86;OMESSO NOMINATIVO NEL RISPETTO DELLA NORMATIVA SULLA PROTEZIONE DATI PERSONALI; ;L.R. 11/85 - Contributi in favore di nefropatici. Liquidazione mese di febbraio 2023.;21/03/2023;10440;1;56;1;Spese correnti;4;Trasferimenti correnti;2;Trasferimenti correnti a Famiglie;5;Altri trasferimenti a famiglie;999;Altri trasferimenti a famiglie n.a.c.;21/03/2023;
481;1;0;12.500,00;12.500,00;OMESSO NOMINATIVO NEL RISPETTO DELLA NORMATIVA SULLA PROTEZIONE DATI PERSONALI; ;Liquidazione contributo per il contrasto dello spopolamento nei comuni fino a 3000 abitanti;21/03/2023;20618;1;510;2;Spese in conto capitale;3;Contributi agli investimenti;2;Contributi agli investimenti a Famiglie;1;Contributi agli investimenti a Famiglie;1;Contributi agli investimenti a Famiglie;21/03/2023;
482;1;0;913,62;913,62;ENEL ENERGIA S.P.A.; ;SALDO Fatt.n. 004315151488  del 13/03/2023;22/03/2023;1206;13;4;1;Spese correnti;3;Acquisto di beni e servizi;2;Acquisto di servizi;5;Utenze e canoni;4;Energia elettrica;22/03/2023;
483;1;0;328,83;328,83;ENEL ENERGIA S.P.A.; ;SALDO Fatt.n. 004311292495  del 10/03/2023;22/03/2023;4109;9;5;1;Spese correnti;3;Acquisto di beni e servizi;2;Acquisto di servizi;5;Utenze e canoni;4;Energia elettrica;22/03/2023;
484;1;0;2.035,56;2.035,56;ENEL ENERGIA S.P.A.; ;SALDO Fatt.n. 004315151490  del 13/03/2023;22/03/2023;8214;1;9;1;Spese correnti;3;Acquisto di beni e servizi;2;Acquisto di servizi;5;Utenze e canoni;4;Energia elettrica;22/03/2023;
485;1;0;209,19;209,19;ENEL ENERGIA S.P.A.; ;SALDO Fatt.n. 004316828144  del 14/03/2023;22/03/2023;8214;1;9;1;Spese correnti;3;Acquisto di beni e servizi;2;Acquisto di servizi;5;Utenze e canoni;4;Energia elettrica;22/03/2023;
486;1;0;897,83;897,83;ENEL ENERGIA S.P.A.; ;SALDO Fatt.n. 004315151489  del 13/03/2023;22/03/2023;8214;1;9;1;Spese correnti;3;Acquisto di beni e servizi;2;Acquisto di servizi;5;Utenze e canoni;4;Energia elettrica;22/03/2023;
487;1;0;1.957,60;1.957,60;ENEL ENERGIA S.P.A.; ;SALDO Fatt.n. 004313123027  del 11/03/2023;22/03/2023;8214;1;9;1;Spese correnti;3;Acquisto di beni e servizi;2;Acquisto di servizi;5;Utenze e canoni;4;Energia elettrica;22/03/2023;
488;1;0;2,48;2,48;GESTORE DEI SERVIZI ENERGETICI  GSE  S.p.a.; ;ACCONTO Fatt.n. 2022008234  del 15/03/2023 CORRISPETTIVO A COPERTURA DEGLI ONERI DI GESTIONE CONVENZIONE: N01H259178707;22/03/2023;1206;18;163;1;Spese correnti;3;Acquisto di beni e servizi;2;Acquisto di servizi;99;Altri servizi;999;Altri servizi diversi n.a.c.;22/03/2023;
489;1;0;11,26;11,26;GESTORE DEI SERVIZI ENERGETICI  GSE  S.p.a.; ;SALDO Fatt.n. 2022008234  del 15/03/2023 CORRISPETTIVO A COPERTURA DEGLI ONERI DI GESTIONE CONVENZIONE: N01H259178707 a compensazione;22/03/2023;1206;18;163;1;Spese correnti;3;Acquisto di beni e servizi;2;Acquisto di servizi;99;Altri servizi;999;Altri servizi diversi n.a.c.;22/03/2023;
502;1;0;149,99;149,99;GIOIELLERIA MARCO DANESE SRL;Z143966703;SALDO Fatt.n. 4/2  del 08/03/2023;24/03/2023;1206;20;36;1;Spese correnti;3;Acquisto di beni e servizi;1;Acquisto di beni;2;Altri beni di consumo;999;Altri beni e materiali di consumo n.a.c.;24/03/2023;
503;1;0;150;150;ANNI ROBERTO;Z702FCA857;SALDO Fatt.n. 1/81  del 18/03/2023 SORVEGLIANZA SANITARIA 2023;24/03/2023;1207;3;145;1;Spese correnti;3;Acquisto di beni e servizi;2;Acquisto di servizi;18;Servizi sanitari;1;Spese per accertamenti sanitari resi necessari dall'attività lavorativa;24/03/2023;
504;1;0;165,83;165,83;IP IMPRESA SERVIZI SRL;9167013A6E;SALDO Fatt.n. 90  del 21/03/2023 Fattura Cliente;27/03/2023;9618;5;496;2;Spese in conto capitale;2;Investimenti fissi lordi e acquisto di terreni;1;Beni materiali;9;Beni immobili;999;Beni immobili n.a.c.;27/03/2023;
505;1;0;1.800,00;1.800,00;OMESSO NOMINATIVO NEL RISPETTO DELLA NORMATIVA SULLA PROTEZIONE DATI PERSONALI; ;Programma ritornare a casa anno 2023. liquidazione primo trimestre;27/03/2023;10418;30;167;1;Spese correnti;4;Trasferimenti correnti;2;Trasferimenti correnti a Famiglie;2;Interventi assistenziali;999;Altri assegni e sussidi assistenziali;27/03/2023;
506;1;0;1.800,00;1.800,00;OMESSO NOMINATIVO NEL RISPETTO DELLA NORMATIVA SULLA PROTEZIONE DATI PERSONALI; ;Programma ritornare a casa anno 2023. liquidazione primo trimestre;27/03/2023;10418;30;168;1;Spese correnti;4;Trasferimenti correnti;2;Trasferimenti correnti a Famiglie;2;Interventi assistenziali;999;Altri assegni e sussidi assistenziali;27/03/2023;
507;1;0;4.000,00;4.000,00;OMESSO NOMINATIVO NEL RISPETTO DELLA NORMATIVA SULLA PROTEZIONE DATI PERSONALI; ;Programma ritornare a casa anno 2023. liquidazione primo trimestre;27/03/2023;10418;30;169;1;Spese correnti;4;Trasferimenti correnti;2;Trasferimenti correnti a Famiglie;2;Interventi assistenziali;999;Altri assegni e sussidi assistenziali;27/03/2023;
508;1;0;65,74;65,74;OMESSO NOMINATIVO NEL RISPETTO DELLA NORMATIVA SULLA PROTEZIONE DATI PERSONALI; ;ACCONTO Fatt.n. 0150020230000643600  del 24/03/2023 B/Bollettazione;29/03/2023;1207;18;13;1;Spese correnti;3;Acquisto di beni e servizi;2;Acquisto di servizi;5;Utenze e canoni;5;Acqua;29/03/2023;
509;1;0;37,36;37,36;ABBANOA S.P.A.; ;SALDO Fatt.n. 0150020230000643600  del 24/03/2023 B/Bollettazione;29/03/2023;1207;18;21;1;Spese correnti;3;Acquisto di beni e servizi;2;Acquisto di servizi;5;Utenze e canoni;5;Acqua;29/03/2023;
510;1;0;127,96;127,96;ABBANOA S.P.A.; ;SALDO Fatt.n. 0150020230000644500  del 24/03/2023 B/Bollettazione;29/03/2023;1207;18;21;1;Spese correnti;3;Acquisto di beni e servizi;2;Acquisto di servizi;5;Utenze e canoni;5;Acqua;29/03/2023;
511;1;0;76,16;76,16;ABBANOA S.P.A.; ;SALDO Fatt.n. 0150020230000643900  del 24/03/2023 B/Bollettazione;29/03/2023;1207;18;21;1;Spese correnti;3;Acquisto di beni e servizi;2;Acquisto di servizi;5;Utenze e canoni;5;Acqua;29/03/2023;
512;1;0;142,29;142,29;ABBANOA S.P.A.; ;SALDO Fatt.n. 0150020230000644600  del 24/03/2023 B/Bollettazione;29/03/2023;1207;18;21;1;Spese correnti;3;Acquisto di beni e servizi;2;Acquisto di servizi;5;Utenze e canoni;5;Acqua;29/03/2023;
513;1;0;69,98;69,98;ABBANOA S.P.A.; ;ACCONTO Fatt.n. 0150020230000643800  del 24/03/2023 B/Bollettazione;29/03/2023;1207;18;21;1;Spese correnti;3;Acquisto di beni e servizi;2;Acquisto di servizi;5;Utenze e canoni;5;Acqua;29/03/2023;
514;1;0;36,53;36,53;ABBANOA S.P.A.; ;SALDO Fatt.n. 0150020230000644100  del 24/03/2023 B/Bollettazione;29/03/2023;1207;18;21;1;Spese correnti;3;Acquisto di beni e servizi;2;Acquisto di servizi;5;Utenze e canoni;5;Acqua;29/03/2023;
515;1;0;49,6;49,6;ABBANOA S.P.A.; ;SALDO Fatt.n. 0150020230000643500  del 24/03/2023 B/Bollettazione;29/03/2023;1207;18;21;1;Spese correnti;3;Acquisto di beni e servizi;2;Acquisto di servizi;5;Utenze e canoni;5;Acqua;29/03/2023;
516;1;0;95,94;95,94;ABBANOA S.P.A.; ;SALDO Fatt.n. 0150020230000644200  del 24/03/2023 B/Bollettazione;29/03/2023;1207;18;21;1;Spese correnti;3;Acquisto di beni e servizi;2;Acquisto di servizi;5;Utenze e canoni;5;Acqua;29/03/2023;
517;1;0;110,25;110,25;ABBANOA S.P.A.; ;SALDO Fatt.n. 0150020230000644300  del 24/03/2023 B/Bollettazione;29/03/2023;4109;3;22;1;Spese correnti;3;Acquisto di beni e servizi;2;Acquisto di servizi;5;Utenze e canoni;5;Acqua;29/03/2023;
518;1;0;185,04;185,04;ABBANOA S.P.A.; ;SALDO Fatt.n. 0150020230000643400  del 24/03/2023 B/Bollettazione;29/03/2023;4210;12;15;1;Spese correnti;3;Acquisto di beni e servizi;2;Acquisto di servizi;5;Utenze e canoni;5;Acqua;29/03/2023;
519;1;0;143,98;143,98;ABBANOA S.P.A.; ;SALDO Fatt.n. 0150020230000644000  del 24/03/2023 B/Bollettazione;29/03/2023;4311;5;24;1;Spese correnti;3;Acquisto di beni e servizi;2;Acquisto di servizi;5;Utenze e canoni;5;Acqua;29/03/2023;
520;1;0;49,6;49,6;ABBANOA S.P.A.; ;SALDO Fatt.n. 0150020230000654100  del 24/03/2023 B/Bollettazione;29/03/2023;5210;2;18;1;Spese correnti;3;Acquisto di beni e servizi;2;Acquisto di servizi;5;Utenze e canoni;5;Acqua;29/03/2023;
521;1;0;120,79;120,79;ABBANOA S.P.A.; ;SALDO Fatt.n. 0150020230000654000  del 24/03/2023 B/Bollettazione;29/03/2023;6211;7;30;1;Spese correnti;3;Acquisto di beni e servizi;2;Acquisto di servizi;5;Utenze e canoni;5;Acqua;29/03/2023;
522;1;0;90,29;90,29;ABBANOA S.P.A.; ;SALDO Fatt.n. 0150020230000643800  del 24/03/2023 B/Bollettazione;29/03/2023;10518;1;29;1;Spese correnti;3;Acquisto di beni e servizi;2;Acquisto di servizi;5;Utenze e canoni;5;Acqua;29/03/2023;
523;1;0;16,53;16,53;A2A ENERGIA; ;SALDO Fatt.n. 823000077850  del 27/03/2023 FORNITURA ENERGIA ELETTRICA periodo: 01.02.2023-28.02.2023 POD IT001E99898431 Contatore 000000000000966489 kWh 21;29/03/2023;5210;1;1;1;Spese correnti;3;Acquisto di beni e servizi;2;Acquisto di servizi;5;Utenze e canoni;4;Energia elettrica;29/03/2023;
524;1;0;53,92;53,92;A2A ENERGIA; ;SALDO Fatt.n. 823000077851  del 27/03/2023 FORNITURA ENERGIA ELETTRICA periodo: 01.02.2023-28.02.2023 POD IT001E98289340 Contatore 000000000000054064 kWh 76;29/03/2023;6211;6;2;1;Spese correnti;3;Acquisto di beni e servizi;2;Acquisto di servizi;5;Utenze e canoni;4;Energia elettrica;29/03/2023;
525;1;0;187,01;187,01;A2A ENERGIA; ;SALDO Fatt.n. 823000077176  del 27/03/2023 FORNITURA ENERGIA ELETTRICA periodo: 01.02.2023-28.02.2023 POD IT001E99410996 Contatore 000000000000310862 kWh 513;29/03/2023;8214;1;3;1;Spese correnti;3;Acquisto di beni e servizi;2;Acquisto di servizi;5;Utenze e canoni;4;Energia elettrica;29/03/2023;
526;1;0;568,76;568,76;VODAFONE OMNITEL  N. V.;Z90396A4DE;SALDO Fatt.n. AP04694006  del 22/03/2023 scissione pagamenti;30/03/2023;1207;9;23;1;Spese correnti;3;Acquisto di beni e servizi;2;Acquisto di servizi;5;Utenze e canoni;1;Telefonia fissa;30/03/2023;
527;1;0;159,58;159,58;VODAFONE OMNITEL  N. V.;Z90396A4DE;SALDO Fatt.n. AP04716651  del 22/03/2023 scissione pagamenti;30/03/2023;4109;2;24;1;Spese correnti;3;Acquisto di beni e servizi;2;Acquisto di servizi;5;Utenze e canoni;1;Telefonia fissa;30/03/2023;
528;1;0;159,58;159,58;VODAFONE OMNITEL  N. V.;Z90396A4DE;SALDO Fatt.n. AP04716650  del 22/03/2023 scissione pagamenti;30/03/2023;4311;2;25;1;Spese correnti;3;Acquisto di beni e servizi;2;Acquisto di servizi;5;Utenze e canoni;1;Telefonia fissa;30/03/2023;
529;1;0;87,84;87,84;VODAFONE OMNITEL  N. V.;Z90396A4DE;SALDO Fatt.n. AP04748118  del 22/03/2023 scissione pagamenti;30/03/2023;5110;3;26;1;Spese correnti;3;Acquisto di beni e servizi;2;Acquisto di servizi;5;Utenze e canoni;1;Telefonia fissa;30/03/2023;
530;1;0;490,5;490,5;PANIFICIO SIGI SRLS;ZA4346482E;SALDO Fatt.n. 2  del 07/03/2022;31/03/2023;1711;20;482;1;Spese correnti;3;Acquisto di beni e servizi;1;Acquisto di beni;2;Altri beni di consumo;999;Altri beni e materiali di consumo n.a.c.;31/03/2023;
531;1;0;750;750;OMESSO NOMINATIVO NEL RISPETTO DELLA NORMATIVA SULLA PROTEZIONE DATI PERSONALI; ;L.R. 25/2005 - contributi economici per persone in stato di poverta. Liquidazione primo trimestre.;31/03/2023;10445;1;177;1;Spese correnti;4;Trasferimenti correnti;2;Trasferimenti correnti a Famiglie;5;Altri trasferimenti a famiglie;999;Altri trasferimenti a famiglie n.a.c.;31/03/2023;
